Cogmind - Beta 16 @@@ ROGUE MODE // 2025.11.12 @ 19:40:15 // Winter2019/RPGLIKE Player: Rentaro Result: Destroyed by Combat Programmer with EMDS Performance ------------- Evolutions (8) 4000 Regions Visited (33) 6600 Robots Destroyed (1416) 7080 Value Destroyed (74261) 74261 Prototype IDs (107) 2140 Alien Tech Used (6) 1200 Bonus (58900) 58900 TOTAL SCORE: 154181 Bonus ------- Triggered High Security 1500 High Alert Combat Kills 43293 Follower Combat Kills 540 Destroyed Unchained 4000 Network Hubs Disabled 800 Aligned with FarCom 300 Met Data Miner 300 Met Imprinter 300 Met Zhirov 300 Built Enhanced Grunts 300 Met R17 at Cetus 500 Found Hidden Lab 3000 Used Core Reset Matrix 3000 Scanned by Researcher 500 Pursued by Intercept 500 Friendly Fire -233 Cogmind --------- Core Integrity 0/900 Matter 270/300 Energy 189/420 System Corruption 0% Temperature Hot (251) Movement Flying (100) Ox1 Location -2/Research Parts ------- > --- POWER (2) -------- Light Fission Core Light Fission Core > --- PROPULSION (7) --- Diametric Drive Diametric Drive Diametric Drive Diametric Drive Diametric Drive Q-thruster > --- UTILITY (11) ----- Advanced Cryofiber Web Structural Scanner Advanced Signal Interpreter Experimental Target Analyzer Experimental Core Analyzer Precision Energy Filter Particle Accelerator Experimental Weapon Cycler QV-33N's Drone Shield Quantum Router Advanced Corruption Screen > --- WEAPON (5) ------- Enhanced Force Rifle Enhanced Force Rifle Enhanced Force Rifle Enhanced Force Rifle Enhanced Force Rifle > --- INVENTORY (6) ---- Experimental Heat Sink Stasis Canceller Authchip [Device] Cooled Plasma Cannon Long-range Phase Cannon Peak State ------------ > --- POWER ------------ Light Fission Core Light Fission Core > --- PROPULSION ------- Diametric Drive Diametric Drive Diametric Drive Diametric Drive Diametric Drive Q-thruster > --- UTILITY ---------- Experimental Heat Sink Advanced Signal Interpreter Experimental Target Analyzer Experimental Core Analyzer Particle Accelerator Experimental Weapon Cycler Quantum Router Advanced Corruption Screen LC Capacitor > --- WEAPON ----------- Enhanced Force Rifle Enhanced Force Rifle Enhanced Force Rifle Enhanced Force Rifle Enhanced Force Rifle > --- INVENTORY -------- Advanced Cryofiber Web Precision Energy Filter Stasis Canceller QV-33N's Drone Shield Cooled Plasma Cannon [Rating: 205] Favorites ----------- Power Light Fission Core Engine Light Deuterium Engine Power Core Light Fission Core Reactor Fusion Reactor Propulsion Diametric Drive Wheel Compact Wheel Flight Unit Diametric Drive Utility Structural Scanner Device Structural Scanner Storage Compact Battery Processor Experimental Signal Interpreter Hackware System Shield Protection Propulsion Shielding Artifact LC Capacitor Weapon Enhanced Force Rifle Energy Gun Enhanced Force Rifle Energy Cannon Plasma Cannon Ballistic Gun Light Assault Rifle Ballistic Cannon Light Cannon Launcher Grenade Launcher Special Weapon Guided Remote Datajack Special Melee Weapon Improved Datajack Build | -11 -10 -10 -10 -9 -8 -7 -7 -7 -7 -6 -6 -6 -6 -6 -5 -5 -5 -5 -5 -5 -5 -4 -4 -4 -4 -4 -4 -4 -4 -3 -3 -3 -2 ------- Run | Yrd Mat Min Exi Min Mat Fac Low Low Dat Pro Fac Low Low Zio Pro Fac Was Fac Upp Upp Zhi Pro Fac Was Fac Ext Cet Arc Hub Res Arm Lab Res Slots Evolved 20 | 4 2 . . . 5 1 . 1 . 2 1 . 1 . . 1 . . . . . . 1 . . . . . . 1 . . . Power 1 | . . . . . 1 . . . . . . . . . . . . . . . . . . . . . . . . . . . . Propulsion 5 | 1 1 . . . 1 . . . . . . . 1 . . . . . . . . . . . . . . . . 1 . . . Utility 10 | 1 . . . . 2 1 . 1 . 2 1 . . . . 1 . . . . . . 1 . . . . . . . . . . Weapon 4 | 2 1 . . . 1 . . . . . . . . . . . . . . . . . . . . . . . . . . . . Parts Attached 166 | 6 13 6 2 1 16 14 . . . 1 26 2 3 5 . 8 . 9 . . 1 . 8 . 3 . 1 . 2 10 4 7 18 Power 11 | 1 1 . . . 3 1 . . . . 1 . 1 . . . . . . . 1 . 1 . . . . . . . 1 . . Engine 5 | 1 1 . . . 3 . . . . . . . . . . . . . . . . . . . . . . . . . . . . Core 3 | . . . . . . 1 . . . . 1 . 1 . . . . . . . . . . . . . . . . . . . . Reactor 3 | . . . . . . . . . . . . . . . . . . . . . 1 . 1 . . . . . . . 1 . . Propulsion 26 | 2 3 2 . . 2 4 . . . . 5 . 1 . . 1 . 4 . . . . 1 . . . . . . 1 . . . Treads . | . . . . . . . . . . . . . . . . . . . . . . . . . . . . . . . . . . Leg . | . . . . . . . . . . . . . . . . . . . . . . . . . . . . . . . . . . Wheel 2 | 2 . . . . . . . . . . . . . . . . . . . . . . . . . . . . . . . . . Hover . | . . . . . . . . . . . . . . . . . . . . . . . . . . . . . . . . . . Flight 24 | . 3 2 . . 2 4 . . . . 5 . 1 . . 1 . 4 . . . . 1 . . . . . . 1 . . . Utility 87 | . 4 1 1 . 2 6 . . . 1 15 2 1 3 . 5 . 3 . . . . 5 . 3 . . . 1 9 3 4 18 Device 50 | . 1 1 1 . 1 2 . . . 1 7 2 . 3 . 5 . 1 . . . . 3 . 2 . . . . 5 . . 15 Storage 1 | . . . . . 1 . . . . . . . . . . . . . . . . . . . . . . . . . . . . Processor 19 | . 2 . . . . 1 . . . . 3 . 1 . . . . 2 . . . . 1 . 1 . . . 1 2 2 . 3 Hackware 12 | . 1 . . . . 3 . . . . 5 . . . . . . . . . . . . . . . . . . 2 . 1 . Protection 4 | . . . . . . . . . . . . . . . . . . . . . . . 1 . . . . . . . 1 2 . Artifact 1 | . . . . . . . . . . . . . . . . . . . . . . . . . . . . . . . . 1 . Weapon 42 | 3 5 3 1 1 9 3 . . . . 5 . . 2 . 2 . 2 . . . . 1 . . . 1 . 1 . . 3 . Energy Gun 16 | . 1 . . . 8 . . . . . 4 . . . . 2 . . . . . . . . . . . . . . . 1 . Energy Cannon 5 | . . . 1 . . 1 . . . . . . . . . . . 1 . . . . . . . . 1 . . . . 1 . Ballistic Gun 8 | 3 1 3 . . . . . . . . . . . . . . . . . . . . 1 . . . . . . . . . . Ballistic Cannon 1 | . 1 . . . . . . . . . . . . . . . . . . . . . . . . . . . . . . . . Launcher 8 | . 1 . . 1 . 2 . . . . 1 . . 2 . . . . . . . . . . . . . . 1 . . . . Special Weapon 1 | . . . . . . . . . . . . . . . . . . . . . . . . . . . . . . . . 1 . Impact Weapon . | . . . . . . . . . . . . . . . . . . . . . . . . . . . . . . . . . . Slashing Weapon . | . . . . . . . . . . . . . . . . . . . . . . . . . . . . . . . . . . Piercing Weapon . | . . . . . . . . . . . . . . . . . . . . . . . . . . . . . . . . . . Special Melee Weapon 3 | . 1 . . . 1 . . . . . . . . . . . . 1 . . . . . . . . . . . . . . . Unidentified Prototypes 42 | . . 1 . . 2 1 . . . . 6 1 . 3 . 2 . 1 1 . 2 . 5 . . . . . 1 6 2 7 1 Parts Lost 2 | . . . . . . . . . . . 1 . . . . 1 . . . . . . . . . . . . . . . . . Power . | . . . . . . . . . . . . . . . . . . . . . . . . . . . . . . . . . . Propulsion . | . . . . . . . . . . . . . . . . . . . . . . . . . . . . . . . . . . Utility 2 | . . . . . . . . . . . 1 . . . . 1 . . . . . . . . . . . . . . . . . Weapon . | . . . . . . . . . . . . . . . . . . . . . . . . . . . . . . . . . . Highest Loss Streak 1 | . . . . . . . . . . . 1 . . . . 1 . . . . . . . . . . . . . . . . . To Critical Strikes . | . . . . . . . . . . . . . . . . . . . . . . . . . . . . . . . . . . Average Backups 1 | . 1 2 2 2 1 1 2 1 1 1 . . . . . . 1 1 2 2 2 2 3 4 3 3 3 3 1 2 2 3 5 Power . | . . . . . . . . . . . . . . . . . . . . . . . . . . . . . . . . . . Propulsion . | . . . . . . . . . . . . . . . . . . . . . . . . . . . . . . . . . . Utility . | . . . . . . . 1 . . . . . . . . . 1 1 1 1 1 1 2 3 2 2 2 2 . 1 1 2 3 Weapon . | . . 1 1 1 . . 1 1 1 1 . . . . . . . . 1 1 1 1 1 1 1 1 1 1 1 1 1 1 1 Tool/Special . | . . . . . . . . . . . . . . . . . . . . . . . . . . . . . . . . . . Unused Backups 9 | . . . . . . 1 . . . . 1 . . . . 1 . 1 . . . . . . . . . . 2 1 . . 2 Power . | . . . . . . . . . . . . . . . . . . . . . . . . . . . . . . . . . . Propulsion 2 | . . . . . . 1 . . . . . . . . . . . 1 . . . . . . . . . . . . . . . Utility 4 | . . . . . . . . . . . 1 . . . . . . . . . . . . . . . . . 1 1 . . 1 Weapon 3 | . . . . . . . . . . . . . . . . 1 . . . . . . . . . . . . 1 . . . 1 Tool/Special . | . . . . . . . . . . . . . . . . . . . . . . . . . . . . . . . . . . Average Slot Usage (%) 98 | . 94 100 96 100 94 99 100 99 100 97 97 100 100 99 100 97 95 99 100 100 100 100 98 100 99 100 100 100 100 99 99 95 95 Engine 3 | . 11 10 9 10 9 7 6 5 5 5 5 5 2 . . . . . . . . . . . . . . . . . . . . Core 6 | . . . . . . 4 6 5 5 5 5 5 7 9 9 9 9 9 9 9 9 9 8 8 8 8 8 8 8 8 8 8 8 Flight 23 | . 21 30 29 30 24 25 25 23 23 22 20 20 21 23 23 22 22 22 22 22 22 22 21 21 21 21 21 21 21 24 24 24 24 Device 21 | . 5 10 10 20 17 12 12 17 17 16 15 25 23 22 23 23 22 26 27 27 27 27 26 26 25 26 26 26 26 28 28 24 23 Processor 13 | . 9 10 9 . . . 6 5 5 5 6 15 15 19 19 18 18 18 18 18 18 18 19 21 21 21 21 21 21 16 15 16 16 Hackware 3 | . 2 . . . . 15 12 11 11 10 18 5 3 . . . . . . . . . . . . . . . . . . 2 4 Energy Gun 17 | . . . . . 22 22 18 16 17 16 18 20 19 19 19 19 22 21 22 22 22 22 21 21 21 21 20 21 20 20 20 19 20 Ballistic Gun 4 | . 27 40 36 36 7 . . . . . . . . . . . . . . . . . . . . . . . . . . . . Special Melee Weapon 1 | . 3 . . . 6 5 6 5 5 5 3 5 4 3 4 3 . . . . . . . . . . . . . . . . . Peak Build Rating 205 | 6 11 18 17 18 44 56 54 58 58 58 122 127 127 132 124 144 140 149 147 147 149 147 165 157 158 161 158 158 163 180 185 205 205 Average Rating 110 | 3 8 10 11 17 33 49 54 57 58 56 87 120 123 124 124 133 140 144 146 147 146 147 150 157 157 158 157 158 156 170 178 180 182 On Entrance 108 | . 6 10 10 17 17 42 54 54 58 58 57 119 121 125 124 124 140 140 147 147 147 147 147 157 157 158 158 158 158 158 177 176 205 Avg Prop Armor Cover (%) 3 | . . . . . . . . . . . . . . . . . . . . . . . . . . . . . . . . . 3 Naked Turns 12 | . . . 12 . . . . . . . . . . . . . . . . . . . . . . . . . . . . . . Heaviest Build 74 | 11 16 11 16 13 30 37 31 32 32 32 38 38 40 47 41 45 44 48 45 45 45 45 46 45 45 48 49 45 50 60 60 74 57 Greatest Support 59 | 37 37 22 22 22 30 37 37 37 37 37 40 40 46 46 46 46 46 49 49 49 49 49 50 50 50 50 50 50 50 59 59 59 58 Greatest Overweight (x) 1 | . 1 . . . 1 . . . . . . . . 1 . . . . . . . . 1 . . . . . . 1 1 1 1 Average Overweight (x) . | . . . . . . . . . . . . . . . . . . . . . . . . . . . . . . . . . . Largest Inventory Capacity 6 | 1 2 2 2 2 2 2 2 2 2 2 2 2 2 2 2 4 4 4 4 4 4 4 4 4 4 4 4 4 5 5 5 6 6 Average Capacity 3 | 1 1 2 2 2 2 2 2 2 2 2 2 2 2 2 2 2 4 4 4 4 4 4 4 4 4 4 4 4 4 5 5 5 6 Most Carried 6 | . 2 2 2 2 2 2 2 2 2 2 2 2 2 2 2 2 4 4 4 4 4 4 4 4 4 4 4 4 5 5 5 6 6 Average Carried 2 | . 1 2 2 2 1 1 2 1 2 1 1 1 1 1 1 1 3 3 4 3 4 4 3 4 3 4 4 4 3 4 4 4 5 Final Capacity 6 | 1 2 2 2 2 2 2 2 2 2 2 2 2 2 2 2 4 4 4 4 4 4 4 4 4 4 4 4 4 5 5 5 6 6 Final Carried 6 | . 2 2 2 2 1 2 2 2 2 2 . 2 1 1 2 2 4 4 4 4 4 4 4 4 4 4 4 4 5 3 5 6 5 Class Distribution -------------------- 59% | Machinist-Sprinter 17% | Hacker-Sprinter 7% | Scavenger-Gunner 4% | Wizard-Sprinter 3% | Scavenger-Sprinter 3% | Gunner Dominant Class ---------------- Gunner | -10/Materials Scavenger-Gunner | -10/Mines Scavenger-Gunner | -10/Exiles Scavenger-Skirmisher | -9/Mines Scavenger-Sprinter | -8/Materials Hacker-Sprinter | -7/Factory Hacker-Sprinter | -7/Lower Caves Hacker-Sprinter | -7/Lower Caves Hacker-Sprinter | -7/Data Miner Hacker-Sprinter | -6/Proximity Caves Hacker-Sprinter | -6/Factory Hacker-Sprinter | -6/Lower Caves Hacker-Sprinter | -6/Lower Caves Machinist-Sprinter | -6/Zion Machinist-Sprinter | -5/Proximity Caves Machinist-Sprinter | -5/Factory Machinist-Sprinter | -5/Waste Machinist-Sprinter | -5/Factory Machinist-Sprinter | -5/Upper Caves Machinist-Sprinter | -5/Upper Caves Machinist-Sprinter | -5/Zhirov Machinist-Sprinter | -4/Proximity Caves Machinist-Sprinter | -4/Factory Machinist-Sprinter | -4/Waste Machinist-Sprinter | -4/Factory Machinist-Sprinter | -4/Extension Machinist-Sprinter | -4/Cetus Machinist-Sprinter | -4/Archives Machinist-Sprinter | -4/Hub_04(d) Machinist-Sprinter | -3/Research Machinist-Sprinter | -3/Armory Machinist-Sprinter | -3/Lab Machinist-Sprinter | -2/Research Resources | -11 -10 -10 -10 -9 -8 -7 -7 -7 -7 -6 -6 -6 -6 -6 -5 -5 -5 -5 -5 -5 -5 -4 -4 -4 -4 -4 -4 -4 -4 -3 -3 -3 -2 ----------- Run | Yrd Mat Min Exi Min Mat Fac Low Low Dat Pro Fac Low Low Zio Pro Fac Was Fac Upp Upp Zhi Pro Fac Was Fac Ext Cet Arc Hub Res Arm Lab Res Matter Collected 5980 | 260 1242 326 . 412 444 252 9 20 . 17 521 48 50 170 38 115 20 235 20 . . 40 300 . 30 50 . . 121 250 280 252 458 Remotely . | . . . . . . . . . . . . . . . . . . . . . . . . . . . . . . . . . . Salvage Created 81540 | . 1058 351 . 355 1151 1972 373 157 . 1016 4200 1274 1498 2839 880 3819 1722 10571 628 1584 . 504 3880 2162 1967 1085 438 294 5289 15174 12109 126 3064 Parts 4087 | . 69 21 . 23 72 77 10 6 . 43 191 51 56 190 48 186 38 569 26 63 . 26 171 42 135 87 36 15 267 717 650 1 201 Haulers Intercepted 41 | . 2 . . . 1 2 . . . . 6 1 . . . 6 . 8 . . . . 2 . . . . . 8 4 . . 1 Recyclers Shooed 9 | . 4 . . . . . . . . . 1 . . . . 1 . . . . . . . . 1 1 . . . . . . 1 Parts Field Recycled . | . . . . . . . . . . . . . . . . . . . . . . . . . . . . . . . . . . Retrieved Matter . | . . . . . . . . . . . . . . . . . . . . . . . . . . . . . . . . . . Parts Self-Destructed 297 | . . . . . . . 10 6 . 44 . 50 50 . 47 . . . 26 59 . 5 . . . . . . . . . . . Prevented 2 | . . . . . . . . 2 . . . . . . . . . . . . . . . . . . . . . . . . . Parts Restored . | . . . . . . . . . . . . . . . . . . . . . . . . . . . . . . . . . . Kills | -11 -10 -10 -10 -9 -8 -7 -7 -7 -7 -6 -6 -6 -6 -6 -5 -5 -5 -5 -5 -5 -5 -4 -4 -4 -4 -4 -4 -4 -4 -3 -3 -3 -2 ------- Run | Yrd Mat Min Exi Min Mat Fac Low Low Dat Pro Fac Low Low Zio Pro Fac Was Fac Upp Upp Zhi Pro Fac Was Fac Ext Cet Arc Hub Res Arm Lab Res Combat Hostiles Destroyed 1109 | . 18 10 . 9 26 31 11 4 . 22 73 14 19 14 10 52 6 150 9 21 . 7 46 6 33 19 9 3 58 217 164 1 47 Guns 1018 | . 18 10 . 5 22 21 9 2 . 19 56 14 18 13 9 44 6 134 9 21 . 7 46 6 29 18 9 3 57 208 159 . 46 Cannons 17 | . . . . . . 4 2 . . 3 8 . . . . . . . . . . . . . . . . . . . . . . AOE 39 | . . . . 4 4 4 . . . . 6 . . . . 7 . 12 . . . . . . 2 . . . . . . . . Classes Destroyed 35 | . 8 . . 3 1 3 . 1 . 1 3 1 . 6 . 1 1 1 . . . 1 . . . . . . . 2 1 . 1 Worker 50 | . 3 . . 2 4 2 . . . . 4 . . . . 6 . 6 . . . . 5 . 6 . . . 6 2 . . 4 Builder 19 | . 2 . . . 1 1 . . . . 1 . . . . 1 . 5 . . . . 4 . 1 . . . 2 . . . 1 Tunneler 5 | . . . . 3 . . . . . . . . . . . 1 . . . . . . . . . . . . 1 . . . . Hauler 41 | . 2 . . . 1 2 . . . . 6 1 . . . 6 . 8 . . . . 2 . . . . . 8 4 . . 1 Recycler 20 | . 6 . . . . 2 . . . . 2 . . . . 3 . 3 . . . . 2 . . . . . 2 . . . . Minesweeper 2 | . . . . . . . . . . . . 1 . . . . . . 1 . . . . . . . . . . . . . . Mechanic 22 | . . . . . 1 1 . . . 1 . . . . . . . 10 . . . . . . . . . . . 4 4 . 1 Operator 18 | . 2 . . . . 3 . . . . 1 . . . . . . . . . . . . . 1 2 . . . 2 5 . 2 Drone 17 | . . . . . . . . . . . . . . . . . . . . . . 2 8 . . . . . . . . . 7 Turret 12 | . . . . . . . . . . . . . . . . . . . . . . . . . . . . . . . . . 12 Watcher 76 | . 3 . . . 5 7 . . . . 7 . . . . 9 . 8 . . . . 5 . 6 3 2 . 4 8 6 . 3 Swarmer 157 | . 6 6 . . 12 11 9 . . 8 11 . 5 . . 20 . 3 . 1 . . 10 . 10 3 . . . 12 13 . 17 Cutter 6 | . . . . . . . . . . . . . . . . 3 . . . . . . . . . . . . 3 . . . . Saboteur 16 | . . . . . . . . . . . . . . . . . . 3 . . . . . . . . . . 2 5 6 . . Grunt 373 | . 12 4 . 3 7 11 1 3 . 9 30 13 8 . 4 11 . 65 8 12 . . 11 . 4 4 2 . 24 64 57 . 6 Brawler 51 | . . . . . . 1 . . . 1 2 . 3 . . 1 . 12 1 3 . . 1 . . . . . 3 12 11 . . Duelist 41 | . . . . . . . . . . 1 . . . . . 1 . 7 . 1 . . . . 1 . . . 1 9 20 . . Protector 38 | . . . . . . . . . . . 2 . . . . . . 6 . . . . . . . . . . 1 17 12 . . Sentry 104 | . . . . 2 7 4 1 . . 2 5 . 2 . 1 5 . 6 . 2 . . 3 . 5 8 . 3 7 26 11 . 4 Demolisher 3 | . . . . . . . . . . . . . . . . . . . . . . . . . . . . . . 2 1 . . Specialist 8 | . . . . . . . . . . . 2 . . . . . . 4 . . . . . . . . . . . . 2 . . Hunter 85 | . . . . . . 1 . . . . 5 1 . . 4 3 . 21 . . . . 4 . 8 2 . . 8 16 9 . 3 Programmer 102 | . . . . . . 3 . . . . 9 . . . . 7 . 19 . 1 . . 7 . 5 . . . 6 29 11 . 5 Heavy 8 | . . . . . . . . . . . 1 . . . . 1 . 1 . . . . . . . . . . 2 . 2 . 1 Behemoth 14 | . . . . . . . . 1 . 1 . . 1 . 1 . . 1 . 1 . . . . . 2 . . 1 2 1 . 2 Compactor 12 | . . . . . . . . . . . . . . . . . 6 . . . . . . 6 . . . . . . . . . Armor Guard 5 | . . . . . . . . . . . . . . . . . . 1 . . . . . . . . . . . . 4 . . Cetus Guard 7 | . . . . . . . . . . . . . . . . . . . . . . . . . . . 7 . . . . . . Tracker 2 | . . . . . . . . . . . . . . . . . . . . . . . . . . . . . . . . . 2 Investigator 2 | . . . . . . . . . . . . . . . . . . . . . . . . . . . . . . . 2 . . Striker 14 | . . . . . . . . . . . . . . . . . . . . . . . . . . . . . . 12 2 . . Executioner 13 | . . . . . . . . . . . . . . . . . . . . . . . . . . . . . . 11 2 . . Explorer 1 | . . . . . . . . . . . . . . 1 . . . . . . . . . . . . . . . . . . . Zionite 60 | . . . . . . . . . . . . . . 60 . . . . . . . . . . . . . . . . . . . Tinkerer 7 | . . . . . . . . . . . . . . 7 . . . . . . . . . . . . . . . . . . . Assembled 9 | . . . . 4 . . . . . . 5 . . . . . . . . . . . . . . . . . . . . . . Surgeon 2 | . . . . . . . . . . . . . . 2 . . . . . . . . . . . . . . . . . . . Wasp 1 | . . . . . . . . . . . . . . 1 . . . . . . . . . . . . . . . . . . . Thug 1 | . . . . . . . . . . . . . . . . . . . . . . 1 . . . . . . . . . . . Savage 6 | . . . . . . . . . . . . . . . . . . . . 1 . 5 . . . . . . . . . . . Butcher 2 | . . . . . . . . . . . . . . 2 . . . . . . . . . . . . . . . . . . . Martyr 1 | . . . . . . . . . . . . . . 1 . . . . . . . . . . . . . . . . . . . Marauder 2 | . . . . . . . . . . . . . . 2 . . . . . . . . . . . . . . . . . . . Fireman 1 | . . . . . . . . . . . . . . 1 . . . . . . . . . . . . . . . . . . . Mutant 6 | . . . . . . . . . . . . . . 5 . . . . . . . 1 . . . . . . . . . . . Best Kill Streak 100 | . 8 3 . 5 6 7 4 3 . 7 10 6 10 26 5 16 6 37 10 9 . 4 13 9 12 6 5 3 13 100 55 1 12 Combat Bots Only 98 | . 5 3 . 4 4 7 4 3 . 7 10 5 10 3 5 10 6 25 9 9 . 4 11 9 9 5 4 3 10 98 33 1 8 Max Kills in Single Turn 19 | . 2 2 . 2 4 2 2 1 . 2 2 1 2 2 2 4 1 19 2 2 . 3 4 2 4 2 1 1 4 4 3 1 3 Gunslinging 2 | . 1 1 . . 1 1 1 . . 1 1 . 1 1 1 2 . 2 1 1 . 2 2 1 2 1 . . 2 2 2 . 2 Exploded 9 | . . . . 2 4 2 . . . . 2 . . . . 3 . 9 . . . . . . 1 . . . . . . . . Melee . | . . . . . . . . . . . . . . . . . . . . . . . . . . . . . . . . . . Uniques/NPCs Destroyed 6 | . . . . . . . . . . . 1 . . 1 . . . 1 . . . . 2 . . . . . . . . 1 . DW-4LL (-6/Factory) Imprinter (-6/Zion) CL-0N3 (-5/Factory) 6S-H0T (-4/Factory) QV-33N (-4/Factory) A5 (-3/Lab) Combat | -11 -10 -10 -10 -9 -8 -7 -7 -7 -7 -6 -6 -6 -6 -6 -5 -5 -5 -5 -5 -5 -5 -4 -4 -4 -4 -4 -4 -4 -4 -3 -3 -3 -2 -------- Run | Yrd Mat Min Exi Min Mat Fac Low Low Dat Pro Fac Low Low Zio Pro Fac Was Fac Upp Upp Zhi Pro Fac Was Fac Ext Cet Arc Hub Res Arm Lab Res Hostile Shots Fired 3111 | . 124 17 . 15 80 135 67 26 . 74 328 13 44 55 26 81 . 376 6 26 . 1 138 . 50 37 11 2 136 541 421 12 269 Missed 1386 | . 40 7 . 5 28 80 32 11 . 32 161 4 20 29 15 42 . 148 3 11 . 1 35 . 26 20 8 2 64 256 186 6 114 Hits 1725 | . 84 10 . 10 52 55 35 15 . 42 167 9 24 26 11 39 . 228 3 15 . . 103 . 24 17 3 . 72 285 235 6 155 Melee 20 | . . . . . . . . . . . . . . 2 . . . 2 . . . . . . . . . . 1 2 13 . . Projectile 1705 | . 84 10 . 10 52 55 35 15 . 42 167 9 24 24 11 39 . 226 3 15 . . 103 . 24 17 3 . 71 283 222 6 155 AOE 14 | . . . . . . . . . . . . . . 2 . 2 . 2 . . . . 1 . . . . . 2 2 3 . . Critical Strikes 97 | . . . . 1 . 2 1 3 . 2 5 . . 2 . 2 . 8 . . . . 25 . . . 1 . 5 17 13 . 10 Actively Blocked 27 | . . . . . . . . . . . . . . . . . . 8 . . . . 19 . . . . . . . . . . Part Disruptions 9 | . . . . . . . . . . . . . . . . . . 1 . . . . 1 . . . . . 1 2 3 . 1 Damage Taken 28974 | . 927 89 . 138 698 682 419 353 . 902 2764 233 355 385 197 885 . 5332 59 334 60 . 2246 . 418 297 53 . 2163 4183 2679 76 2047 Core 23318 | . 741 69 . 117 569 528 341 277 . 749 2233 189 286 305 157 733 . 4324 51 274 48 . 1801 . 328 240 44 . 1774 3330 2133 58 1619 Absorbed by Shields 6266 | . . . . . . . . . . . . . . . . . . . . . . . . . . . 25 . . 2743 2018 75 1405 Redirected to Core 19656 | . 589 59 . 76 447 502 254 277 . 561 1882 157 246 263 137 547 . 3654 31 217 48 . 1559 . 311 195 32 . 1413 2893 1817 58 1431 Ignored by Resistances 1693 | . . . . . . . . . . . . . . . . . . . . . . . 33 . 31 25 6 . 101 555 470 . 472 Core Remaining (%) 90 | 100 . . . 60 80 . . . . 100 . . . . 100 . . . . . . 100 . . . . . . 86 . . 100 . Volleys Fired 2336 | . 169 11 4 31 67 95 15 17 1 47 205 25 33 157 17 118 8 233 19 25 . 10 106 13 64 27 16 5 143 310 220 22 103 Largest 5 | . 4 4 1 4 4 4 4 4 1 4 5 4 4 4 4 5 5 5 5 5 . 4 5 5 5 5 5 5 5 5 5 5 5 Hottest 405 | . 80 80 120 80 276 266 266 266 80 266 373 324 324 324 324 405 405 405 405 405 . 324 405 405 405 405 405 405 405 405 405 405 405 Shots Fired 9595 | . 324 44 4 97 239 356 56 60 1 161 710 100 132 604 68 474 40 1138 79 125 . 40 467 65 236 127 68 25 655 1512 1055 50 483 Gun 9338 | . 242 44 . 88 238 326 45 51 . 136 644 100 132 597 68 474 40 1138 79 125 . 40 467 65 236 127 67 25 651 1512 1054 44 483 Cannon 187 | . 48 . 4 . . 27 11 9 1 25 56 . . . . . . . . . . . . . . . 1 . 1 . 1 3 . Launcher 67 | . 34 . . 9 1 3 . . . . 10 . . 7 . . . . . . . . . . . . . . 3 . . . . Special 3 | . . . . . . . . . . . . . . . . . . . . . . . . . . . . . . . . 3 . Kinetic 530 | . 290 44 . 88 108 . . . . . . . . . . . . . . . . . . . . . . . . . . . . Thermal 8993 | . . . 4 . 130 353 56 60 1 161 700 100 132 597 68 474 40 1138 79 125 . 40 467 65 236 127 68 25 652 1512 1055 45 483 Explosive 64 | . 34 . . 9 1 3 . . . . 10 . . 7 . . . . . . . . . . . . . . . . . . . Electromagnetic 5 | . . . . . . . . . . . . . . . . . . . . . . . . . . . . . 3 . . 2 . Robot Hit Streak 72 | . 10 10 . 22 53 37 19 28 . 21 36 28 21 23 17 26 17 27 23 23 . 8 38 27 21 37 20 28 43 72 67 11 33 Robot Miss Streak 5 | . 4 2 . 1 3 2 2 2 . 2 3 1 1 4 1 3 1 3 3 2 . 2 4 2 3 1 1 . 2 3 5 1 5 Penetration Max . | . . . . . . . . . . . . . . . . . . . . . . . . . . . . . . . . . . Secondary Targets 388 | . 8 5 . 1 1 6 3 . . 2 15 4 3 10 3 15 . 56 3 7 . 2 13 2 12 4 3 . 19 105 61 . 25 Max Gunslinging Chain 3 | . 1 1 . 1 1 2 2 . . 1 2 1 1 1 1 2 . 2 2 1 . 2 2 2 3 1 1 . 3 3 2 . 2 Shots Hit Robots 5410 | . 133 24 . 61 153 161 28 48 2 116 399 57 93 244 45 180 23 702 32 76 . 23 231 50 120 84 43 19 265 1028 693 27 250 Core Hits 2496 | . 58 18 . 25 69 73 13 12 . 44 178 28 36 101 23 109 13 324 18 36 . 14 110 11 70 42 23 6 132 450 338 8 114 Critical Kills 565 | . . . . . . . . . . . 7 7 8 29 3 22 4 70 9 10 . 6 29 4 19 12 7 3 48 140 101 . 27 Critical Parts Destroyed 657 | . . . . . . . . . . . 20 6 14 24 8 19 . 112 3 13 . 1 39 1 21 20 6 2 41 159 100 4 44 Critical Strikes 1369 | . . . . . 5 9 1 5 . 10 52 13 23 56 11 41 5 186 12 28 . 7 73 9 41 37 13 8 91 334 218 5 76 Burn 47 | . . . . . 5 9 1 5 . 10 17 . . . . . . . . . . . . . . . . . . . . . . Destroy 1322 | . . . . . . . . . . . 35 13 23 56 11 41 5 186 12 28 . 7 73 9 41 37 13 8 91 334 218 5 76 Melee Attacks 24 | . 3 . . . 4 2 . . 2 1 4 . . 1 . 1 . 6 . . . . . . . . . . . . . . . Impact . | . . . . . . . . . . . . . . . . . . . . . . . . . . . . . . . . . . Slashing . | . . . . . . . . . . . . . . . . . . . . . . . . . . . . . . . . . . Piercing . | . . . . . . . . . . . . . . . . . . . . . . . . . . . . . . . . . . Sneak Attacks 21 | . 3 . . . 2 2 . . 2 1 3 . . 1 . 1 . 6 . . . . . . . . . . . . . . . Combat Hostiles . | . . . . . . . . . . . . . . . . . . . . . . . . . . . . . . . . . . Follow-up Attacks . | . . . . . . . . . . . . . . . . . . . . . . . . . . . . . . . . . . Damage Inflicted 184663 | . 1917 244 . 697 2283 4450 656 1165 . 2901 13908 1897 3173 6955 1558 8714 771 26779 1034 2639 60 758 8548 1698 5347 2999 1484 646 9860 36570 24860 713 9379 Guns 170653 | . 1692 244 . 483 2128 3299 530 965 . 2403 10350 1897 3173 6955 1558 6421 771 23451 1034 2639 . 758 8140 1698 4184 2999 1484 646 9229 36570 24860 713 9379 Cannons 2495 | . 83 . . . . 651 126 200 . 498 937 . . . . . . . . . . . . . . . . . . . . . . Explosions 11445 | . 132 . . 214 155 500 . . . . 2621 . . . . 2293 . 3328 . . . . 408 . 1163 . . . 631 . . . . Melee . | . . . . . . . . . . . . . . . . . . . . . . . . . . . . . . . . . . Ramming 70 | . 10 . . . . . . . . . . . . . . . . . . . 60 . . . . . . . . . . . . Kinetic 3160 | . 1775 244 . 483 658 . . . . . . . . . . . . . . . . . . . . . . . . . . . . Thermal 176154 | . . . . . 1470 3950 656 1165 . 2901 12155 1897 3173 6955 1558 7373 771 26691 1034 2639 . 758 8375 1698 5055 2999 1484 646 9229 36570 24860 713 9379 Explosive 4019 | . 132 . . 214 155 500 . . . . 1753 . . . . 1004 . 88 . . . . 173 . . . . . . . . . . Electromagnetic 1260 | . . . . . . . . . . . . . . . . 337 . . . . . . . . 292 . . . 631 . . . . Impact . | . . . . . . . . . . . . . . . . . . . . . . . . . . . . . . . . . . Slashing . | . . . . . . . . . . . . . . . . . . . . . . . . . . . . . . . . . . Piercing . | . . . . . . . . . . . . . . . . . . . . . . . . . . . . . . . . . . Highest Corruption 4 | . . . . . . 1 1 1 1 1 4 4 4 4 . . . . . . . . . . . . . . . . . . . Average Corruption 2 | . . . . . . 1 1 1 1 1 3 4 4 4 . . . . . . . . . . . . . . . . . . . Corruption Purged . | . . . . . . . . . . . . . . . . . . . . . . . . . . . . . . . . . . Corruption Blocked 57 | . . . . . . . . . . . . . . . . 2 . 6 . . 1 . 5 10 1 2 . . 7 7 7 2 7 Effects 49 | . . . . . . . 2 2 . 4 29 5 6 1 . . . . . . . . . . . . . . . . . . . Message Errors 14 | . . . . . . . . 2 . 1 9 1 1 . . . . . . . . . . . . . . . . . . . . Matter Fused 13 | . . . . . . . 1 . . 1 7 1 3 . . . . . . . . . . . . . . . . . . . . Heat Flow Errors 7 | . . . . . . . . . . 1 4 1 1 . . . . . . . . . . . . . . . . . . . . Energy Discharges 4 | . . . . . . . . . . . 3 1 . . . . . . . . . . . . . . . . . . . . . Data Loss (minor) 3 | . . . . . . . 1 . . 1 . 1 . . . . . . . . . . . . . . . . . . . . . Data Loss (major) 3 | . . . . . . . . . . . 2 . 1 . . . . . . . . . . . . . . . . . . . . Misfires 2 | . . . . . . . . . . . 2 . . . . . . . . . . . . . . . . . . . . . . Alerts 1 | . . . . . . . . . . . . . . 1 . . . . . . . . . . . . . . . . . . . Weapon Failures 2 | . . . . . . . . . . . 2 . . . . . . . . . . . . . . . . . . . . . . Overload Shots 3 | . . . . . . . . . . . . . . . . . . . . . . . . . . . . . 1 . 1 1 . Overflow Damage 1491 | . 14 . . . . 36 25 . . . 234 . . . . 301 . 617 . . . . 60 . 145 . . . 59 . . . . Projectiles 49 | . 14 . . . . 6 25 . . . 4 . . . . . . . . . . . . . . . . . . . . . . Explosions 1442 | . . . . . . 30 . . . . 230 . . . . 301 . 617 . . . . 60 . 145 . . . 59 . . . . Melee . | . . . . . . . . . . . . . . . . . . . . . . . . . . . . . . . . . . Knockbacks 2 | . 2 . . . . . . . . . . . . . . . . . . . . . . . . . . . . . . . . Impact . | . . . . . . . . . . . . . . . . . . . . . . . . . . . . . . . . . . Kinetic 2 | . 2 . . . . . . . . . . . . . . . . . . . . . . . . . . . . . . . . Secondary . | . . . . . . . . . . . . . . . . . . . . . . . . . . . . . . . . . . Self-Inflicted Damage 754 | . 58 . . . . . . . . . . . . . . . . 351 . . 60 . 101 . . . . . 184 . . . . Shots 12 | . 3 . . . . . . . . . . . . . . . . 4 . . . . 1 . . . . . 4 . . . . Rammed 1 | . 1 . . . . . . . . . . . . . . . . . . . . . . . . . . . . . . . . Targets Rammed 1 | . 1 . . . . . . . . . . . . . . . . . . . . . . . . . . . . . . . . Kicked . | . . . . . . . . . . . . . . . . . . . . . . . . . . . . . . . . . . Crushed . | . . . . . . . . . . . . . . . . . . . . . . . . . . . . . . . . . . Highest Temperature 528 | . . 8 76 9 526 283 149 455 . 528 498 139 162 165 117 246 258 471 322 332 . 128 339 . 1 1 2 . 94 93 119 4 393 Average Temperature 93 | . . 4 33 5 129 56 55 119 . 271 93 58 58 53 45 56 139 136 119 131 . 65 126 . 1 1 2 . 37 18 23 4 124 Received Heat Transfer 6129 | . 351 9 . 54 261 183 42 420 . 822 551 81 93 125 39 45 . 990 27 78 . . 194 . 9 39 . . 278 679 358 . 401 Effects 35 | . . . . . 10 1 . 1 . 4 9 . . . . . . 9 . . . . 1 . . . . . . . . . . Shutdowns 11 | . . . . . 3 . . 1 . 2 2 . . . . . . 3 . . . . . . . . . . . . . . . Energy Bleed 5 | . . . . . 2 1 . . . . . . . . . . . 2 . . . . . . . . . . . . . . . Interference 12 | . . . . . 4 . . . . . 4 . . . . . . 3 . . . . 1 . . . . . . . . . . Matter Decay 2 | . . . . . 1 . . . . . . . . . . . . 1 . . . . . . . . . . . . . . . Short Circuit 1 | . . . . . . . . . . 1 . . . . . . . . . . . . . . . . . . . . . . . Damage (minor) 1 | . . . . . . . . . . 1 . . . . . . . . . . . . . . . . . . . . . . . Damage (major) 3 | . . . . . . . . . . . 3 . . . . . . . . . . . . . . . . . . . . . . Siege Activations . | . . . . . . . . . . . . . . . . . . . . . . . . . . . . . . . . . . Martial Activations . | . . . . . . . . . . . . . . . . . . . . . . . . . . . . . . . . . . Shielding Activations . | . . . . . . . . . . . . . . . . . . . . . . . . . . . . . . . . . . Robots Disrupted 1 | . . . . . . . . . . . . . . . . 1 . . . . . . . . . . . . . . . . . Combat Hostiles . | . . . . . . . . . . . . . . . . . . . . . . . . . . . . . . . . . . Robots Corrupted 1 | . . . . . . . . . . . . . . . . . . . . . . . . . . . . . 1 . . . . Combat Hostiles . | . . . . . . . . . . . . . . . . . . . . . . . . . . . . . . . . . . Parts Fried 5 | . . . . . . . . . . . . . . . . . . . . . . . . . 2 . . . 3 . . . . Impact Corruptions . | . . . . . . . . . . . . . . . . . . . . . . . . . . . . . . . . . . Robots Melted 35 | . . . . . . 2 . 2 . . 3 . 1 1 1 1 . 4 . . . . . . 2 1 . . 1 9 5 1 1 Combat Hostiles 35 | . . . . . . 2 . 2 . . 3 . 1 1 1 1 . 4 . . . . . . 2 1 . . 1 9 5 1 1 Parts Melted 765 | . . . . 1 8 17 6 5 . 13 44 4 8 25 11 31 2 101 1 11 . 1 17 4 13 18 4 . 53 204 109 13 41 Heat Transferred 187086 | . . . . . 3034 7142 1162 2224 . 5412 15273 2109 3478 7876 1702 7345 851 26577 1147 2849 . 851 7064 1887 5051 3330 1628 703 10082 34605 23703 764 9237 Parts Sabotaged 2 | . . . . . . . . . . . . . . . . . . 2 . . . . . . . . . . . . . . . Parts Stolen . | . . . . . . . . . . . . . . . . . . . . . . . . . . . . . . . . . . Parts Stripped . | . . . . . . . . . . . . . . . . . . . . . . . . . . . . . . . . . . Power Chain Reactions 1 | . . . . . . . . . . . . . . . . . . . . . . . . . . . . . 1 . . . . Alert | -11 -10 -10 -10 -9 -8 -7 -7 -7 -7 -6 -6 -6 -6 -6 -5 -5 -5 -5 -5 -5 -5 -4 -4 -4 -4 -4 -4 -4 -4 -3 -3 -3 -2 ------- Run | Yrd Mat Min Exi Min Mat Fac Low Low Dat Pro Fac Low Low Zio Pro Fac Was Fac Upp Upp Zhi Pro Fac Was Fac Ext Cet Arc Hub Res Arm Lab Res Maximum Alert Level 5 | . 3 2 . . 2 1 . . . . 5 . . . . 5 3 5 . . . . 4 2 5 3 2 1 5 5 5 . 4 Low Security (%) 21 | 100 33 . . 100 56 71 . . . . 23 . . . . 18 . . . . . . 28 . . . 27 23 5 . . . 14 Level 1 17 | . 36 28 . . 42 28 . . . . 16 . . . . 20 . . . . . . 8 55 7 19 70 76 5 . . . 14 Level 2 15 | . 9 71 . . 1 . . . . . 20 . . . . 9 . 35 . . . . 36 44 9 59 2 . 2 . . . 18 Level 3 9 | . 20 . . . . . . . . . 13 . . . . 7 100 4 . . . . 24 . 13 21 . . 12 . . . 19 Level 4 10 | . . . . . . . . . . . 14 . . . . 27 . 12 . . . . 2 . 66 . . . 22 . . . 32 Level 5 8 | . . . . . . . . . . . 10 . . . . 16 . 8 . . . . . . 2 . . . 52 13 21 . . High Security 16 | . . . . . . . . . . . . . . . . . . 39 . . . . . . . . . . . 86 78 . . Max Security . | . . . . . . . . . . . . . . . . . . . . . . . . . . . . . . . . . . Sterilizations 3 | . . . . . . . . . . . . . . . . . . 1 . . . . . . . . . . . 1 1 . . Peak Influence 8699 | . 855 503 . 85 403 377 . . . . 2501 . . . . 2492 870 5234 . . . . 1159 409 1612 781 407 253 3381 8118 8699 . 1428 Initial 4261 | . . 325 . . 22 32 . . . . 250 . . . . 75 870 575 . . . . . 405 272 718 219 105 74 1774 4261 . . Average 1452 | . 342 419 . 35 174 161 . . . . 704 . . . . 937 847 2080 . . . . 460 400 1217 549 257 206 1992 4183 6253 . 756 Influence Increases 40718 | . 1329 248 . 254 813 1080 240 105 . 636 3533 320 420 . 250 3125 12 5723 225 465 . 10 1855 14 1620 584 407 168 4137 6454 4568 . 2123 Destroy 0b10 Robot/C 20700 | . 360 200 . 100 520 620 220 80 . 500 1300 280 380 . 200 1040 . 2840 180 420 . . 720 . 660 400 220 80 1340 4000 3080 . 960 Destroy 0b10 Robot/NC 1515 | . 90 . . 25 60 90 . 5 . 5 115 10 10 . 10 130 . 230 25 5 . 10 90 . 70 25 10 . 125 185 135 . 55 Destroy Leader 3592 | . 80 40 . 10 122 158 20 20 . 50 286 30 30 . 40 240 . 500 20 40 . . 144 . 152 36 10 . 308 614 474 . 168 Allied During Kill 500 | . . 8 . 5 . . . . . 81 1 . . . . . . 88 . . . . . . . 14 105 80 51 . . . 67 Trap Triggered on 0b10 70 | . . . . . 10 . . . . . 30 . . . . 10 . 20 . . . . . . . . . . . . . . . Successful Hack 675 | . 36 . . . 42 55 . . . . 93 . . . . 122 . 100 . . . . 36 . 43 46 . . 3 54 . . 45 Disable Machine 4785 | . 495 . . 60 15 105 . . . . 1020 . . . . 570 . 810 . . . . 180 . 405 30 30 . 555 90 315 . 105 Anti-Garrison Action 600 | . . . . . . . . . . . . . . . . . . . . . . . 150 . . . . . 300 150 . . . Destroy Structure 5476 | . 253 . . 54 14 52 . . . . 448 . . . . 818 12 970 . . . . 340 14 230 18 32 8 1170 356 354 . 333 Partial Spotted 315 | . 15 . . . . . . . . . 75 . . . . 30 . 15 . . . . 15 . 15 15 . . 30 30 15 . 60 Lose Combat Pursuer 2490 | . . . . . 30 . . . . . 165 . . . . 165 . 150 . . . . 180 . 45 . . . 255 975 195 . 330 Influence Decreases 39290 | . 494 732 351 196 799 782 343 241 131 238 1432 1115 523 1601 130 759 1676 1311 2058 777 3089 10 696 784 541 1660 535 219 969 1717 3987 8699 695 Entered New Map 28092 | . . 510 351 . 36 40 137 51 131 . 148 925 325 1601 . 45 1616 247 1938 647 3089 . . 754 117 750 173 159 139 1607 3857 8699 . Time Decay 7505 | . 494 222 . 196 360 592 206 190 . 218 634 190 198 . 130 534 60 534 120 130 . 10 386 30 404 310 362 50 410 110 130 . 295 Lost Part 20 | . . . . . . . . . . . 10 . . . . 10 . . . . . . . . . . . . . . . . . Lost Ally 720 | . . . . . . . . . . 20 40 . . . . 20 . 80 . . . . 10 . 20 . . 10 120 . . . 400 Purge Threat 2953 | . . . . . 403 150 . . . . 600 . . . . 150 . 450 . . . . 300 . . 600 . . 300 . . . . Squads Dispatched 195 | . 4 . . 1 3 7 . . . 1 25 . . . . 16 . 41 . . . . 11 . 16 . . . 28 2 25 . 15 Investigation 33 | . 3 . . 1 . 1 . . . . 7 . . . . 5 . 8 . . . . 2 . 2 . . . 3 . . . 1 Extermination 32 | . . . . . . 4 . . . . 6 . . . . 3 . 3 . . . . 3 . 5 . . . 4 1 . . 3 Reinforcement 37 | . 1 . . . . 2 . . . . 8 . . . . 4 . 4 . . . . 2 . 3 . . . 8 1 1 . 3 Assault 77 | . . . . . . . . . . 1 1 . . . . 4 . 26 . . . . 4 . 3 . . . 10 . 24 . 4 Garrison 15 | . . . . . 3 . . . . . 3 . . . . . . . . . . . . . 3 . . . 3 . . . 3 Intercept 1 | . . . . . . . . . . . . . . . . . . . . . . . . . . . . . . . . . 1 Searches Triggered . | . . . . . . . . . . . . . . . . . . . . . . . . . . . . . . . . . . Unchained Authorized 6 | . . . . . . . . . . . 1 . . . . . . 1 . . . . 2 . . . . . . . . . 2 Data Miner Redirects 1 | . . . . . . . . . . . 1 . . . . . . . . . . . . . . . . . . . . . . Construction Impeded 4 | . . . . . . . . . . . . . . . . . . 1 . . . . . . 2 . . . 1 . . . . Haulers Reinforced 13 | . . . . . . 2 . . . . 4 . . . . 2 . 1 . . . . 1 . . . . . 3 . . . . Active Scanning Responses . | . . . . . . . . . . . . . . . . . . . . . . . . . . . . . . . . . . Cargo Convoy Interrupts 2 | . . . . . . . . . . . 1 . . . . . . 1 . . . . . . . . . . . . . . . Stealth | -11 -10 -10 -10 -9 -8 -7 -7 -7 -7 -6 -6 -6 -6 -6 -5 -5 -5 -5 -5 -5 -5 -4 -4 -4 -4 -4 -4 -4 -4 -3 -3 -3 -2 --------- Run | Yrd Mat Min Exi Min Mat Fac Low Low Dat Pro Fac Low Low Zio Pro Fac Was Fac Upp Upp Zhi Pro Fac Was Fac Ext Cet Arc Hub Res Arm Lab Res Distress Signals 46 | . 1 . . . 2 1 . . . . 4 . . . . 1 . 1 . . . . 4 . 2 . 2 . 4 9 8 . 7 Communications Jammed . | . . . . . . . . . . . . . . . . . . . . . . . . . . . . . . . . . . Distress Signals . | . . . . . . . . . . . . . . . . . . . . . . . . . . . . . . . . . . Times Spotted 1536 | . 28 9 . 8 35 43 10 4 . 21 95 12 17 74 9 54 3 194 5 19 . 6 60 6 41 22 13 2 69 315 202 1 159 Peak Tracking Total 32 | . 5 3 . 3 4 5 4 2 . 7 12 5 7 5 3 6 2 14 4 6 . 4 9 4 5 7 5 1 18 32 15 1 27 Tactical Retreats 78 | . . . . . 1 . . . . . 9 . . 1 . 7 . 5 . . . . 5 . 2 . . . 5 21 5 . 17 Traps | -11 -10 -10 -10 -9 -8 -7 -7 -7 -7 -6 -6 -6 -6 -6 -5 -5 -5 -5 -5 -5 -5 -4 -4 -4 -4 -4 -4 -4 -4 -3 -3 -3 -2 ------- Run | Yrd Mat Min Exi Min Mat Fac Low Low Dat Pro Fac Low Low Zio Pro Fac Was Fac Upp Upp Zhi Pro Fac Was Fac Ext Cet Arc Hub Res Arm Lab Res Traps Triggered 42 | . . . . . . 1 . . . . 3 1 . . . 1 . 7 . . . . 7 . . 2 . . 1 5 13 . 1 Indirectly 2 | . . . . . . . . . . . . . . . . . . 1 . . . . . . . . . . 1 . . . . Trap Hack Attempts 179 | . 23 . . . 70 23 . . . . 17 . . . . 46 . . . . . . . . . . . . . . . . . Triggered 4 | . 1 . . . . 2 . . . . 1 . . . . . . . . . . . . . . . . . . . . . . Disarmed 18 | . . . . . 4 . . . . . 8 . . . . . . . . . . . . . . . . . . 6 . . . Reprogrammed 24 | . 3 . . . 8 2 . . . . 5 . . . . 2 . 4 . . . . . . . . . . . . . . . Reused 7 | . . . . . 1 . . . . . 3 . . . . 1 . 2 . . . . . . . . . . . . . . . Traps Extracted . | . . . . . . . . . . . . . . . . . . . . . . . . . . . . . . . . . . Installed . | . . . . . . . . . . . . . . . . . . . . . . . . . . . . . . . . . . Triggered 7 | . . . . . 1 . . . . . 3 . . . . 1 . 2 . . . . . . . . . . . . . . . Objects Rigged 53 | . . . . . 13 . . . . . . . . . . 28 . 12 . . . . . . . . . . . . . . . Exploded 13 | . . . . . 1 . . . . . . . . . . 10 . 2 . . . . . . . . . . . . . . . Machines | -11 -10 -10 -10 -9 -8 -7 -7 -7 -7 -6 -6 -6 -6 -6 -5 -5 -5 -5 -5 -5 -5 -4 -4 -4 -4 -4 -4 -4 -4 -3 -3 -3 -2 ---------- Run | Yrd Mat Min Exi Min Mat Fac Low Low Dat Pro Fac Low Low Zio Pro Fac Was Fac Upp Upp Zhi Pro Fac Was Fac Ext Cet Arc Hub Res Arm Lab Res Machines Disabled 344 | . 33 . . 5 1 7 . . . . 68 . 1 7 . 38 . 55 1 . . . 13 . 27 3 2 . 39 7 26 4 7 Max in Single Turn 21 | . 2 . . 2 1 3 . . . . 21 . 1 1 . 5 . 12 1 . . . 3 . 7 1 1 . 13 1 3 1 1 Garrison Access 17 | . . . . . . 4 . . . . 2 . . . . 2 . 2 . . . . 1 . . . . . 2 2 . . 2 Network Hub 4 | . . . . . . . . . . . . . . . . . . . . . . . . . . . . . 4 . . . . Energy Cycler 1 | . . . . . . . . . . . . . . . . . . . . . . . . . . . . . . . 1 . . Machines Repaired . | . . . . . . . . . . . . . . . . . . . . . . . . . . . . . . . . . . Machines Dismantled . | . . . . . . . . . . . . . . . . . . . . . . . . . . . . . . . . . . Machines Sabotaged . | . . . . . . . . . . . . . . . . . . . . . . . . . . . . . . . . . . Overloaded Fab Kills . | . . . . . . . . . . . . . . . . . . . . . . . . . . . . . . . . . . Hacking | -11 -10 -10 -10 -9 -8 -7 -7 -7 -7 -6 -6 -6 -6 -6 -5 -5 -5 -5 -5 -5 -5 -4 -4 -4 -4 -4 -4 -4 -4 -3 -3 -3 -2 --------- Run | Yrd Mat Min Exi Min Mat Fac Low Low Dat Pro Fac Low Low Zio Pro Fac Was Fac Upp Upp Zhi Pro Fac Was Fac Ext Cet Arc Hub Res Arm Lab Res Machines Accessed 197 | . 9 . 1 1 12 31 . . 2 . 28 1 . . . 22 . 22 1 1 8 . 12 . 10 9 3 . 9 4 3 2 6 Terminals 115 | . 7 . . . 10 16 . . . . 14 . . . . 14 . 12 . . . . 7 . 6 9 3 . 8 3 2 . 4 Fabricators 19 | . . . . . . 3 . . . . 6 . . . . 3 . 4 . . . . 2 . 1 . . . . . . . . Repair Stations 1 | . . . . . . . . . . . . . . . . . . . . . . . 1 . . . . . . . . . . Recycling Units 23 | . 2 . . . 1 5 . . . . 4 . . . . 3 . 3 . . . . 1 . 3 . . . . . 1 . . Scanalyzers 9 | . . . . . 1 3 . . . . 2 . . . . . . 1 . . . . 1 . . . . . . 1 . . . Garrison Access 13 | . . . . . . 4 . . . . 2 . . . . 2 . 2 . . . . . . . . . . 1 . . . 2 Total Hacks 667 | . 31 . 1 1 36 103 . . 10 . 107 1 . . . 65 . 73 1 1 41 . 32 . 25 27 17 . 24 29 8 2 32 Successful 415 | . 16 . 1 1 25 72 . . 10 . 74 1 . . . 41 . 47 1 1 41 . 17 . 11 16 8 . 5 11 1 2 13 Failed 250 | . 15 . . . 10 30 . . . . 33 . . . . 24 . 26 . . . . 15 . 14 11 9 . 19 18 7 . 19 Catastrophic 37 | . 2 . . . 2 3 . . . . 5 . . . . 2 . 2 . . . . 3 . 1 1 . . 5 1 3 . 7 Database Lockouts 2 | . . . . . 1 1 . . . . . . . . . . . . . . . . . . . . . . . . . . . Manual 323 | . 15 . 6 . 18 55 . . . . 58 . . 2 . 38 . 30 . . . . 12 . 14 14 2 3 18 11 6 3 18 Terminals 463 | . 24 . . . 31 76 . . . . 77 . . . . 47 . 47 . . . . 19 . 18 27 17 . 21 27 6 . 26 Fabricators 41 | . . . . . . 3 . . . . 13 . . . . 7 . 11 . . . . 4 . 3 . . . . . . . . Repair Stations 4 | . . . . . . . . . . . . . . . . . . . . . . . 4 . . . . . . . . . . Recycling Units 57 | . 7 . . . 3 13 . . . . 11 . . . . 8 . 8 . . . . 1 . 4 . . . . . 2 . . Scanalyzers 18 | . . . . . 2 3 . . . . 2 . . . . . . 5 . . . . 4 . . . . . . 2 . . . Garrison Access 26 | . . . . . . 8 . . . . 4 . . . . 3 . 2 . . . . . . . . . . 3 . . . 6 Terminal Hacks 215 | . 4 . 1 1 13 35 . . 10 . 37 1 . . . 9 . 20 1 1 41 . 4 . . 10 8 . 3 6 . 2 8 Record 57 | . . . . . . 5 . . 6 . . . . . . . . 2 1 . 32 . . . . 1 8 . . . . 1 1 Part Schematic 6 | . . . . . . . . . 1 . 4 . . . . . . . . . 1 . . . . . . . . . . . . Robot Analysis 10 | . 1 . . . 1 3 . . . . . . . . . . . 1 . . 4 . . . . . . . . . . . . Prototype ID Bank 15 | . 2 . . . . 2 . . 3 . . . . . . . . 1 . . 4 . . . . 1 . . . . . . 2 Open Door 4 | . . . . 1 . . . . . . . 1 . . . . . . . 1 . . . . . 1 . . . . . . . Level Access Points 6 | . . . . . 1 . . . . . 1 . . . . 1 . 1 . . . . 1 . . . . . . . . . 1 Branch Access Points 5 | . . . . . 1 1 . . . . 1 . . . . . . 1 . . . . . . . . . . . . . . 1 Emergency Access Points 2 | . . . . . 1 . . . . . . . . . . . . . . . . . . . . . . . . . . . 1 Machine Index 1 | . . . . . . . . . . . 1 . . . . . . . . . . . . . . . . . . . . . . Terminal Index 6 | . 1 . . . 1 1 . . . . . . . . . . . 1 . . . . . . . 1 . . . . . . 1 Fabricator Index 1 | . . . . . . . . . . . 1 . . . . . . . . . . . . . . . . . . . . . . Repair Station Index 1 | . . . . . . . . . . . . . . . . . . . . . . . . . . 1 . . . . . . . Scanalyzer Index 3 | . . . . . . . . . . . 1 . . . . . . 1 . . . . . . . . . . . 1 . . . Garrison Index 1 | . . . . . . 1 . . . . . . . . . . . . . . . . . . . . . . . . . . . Alert Level 18 | . . . . . 2 5 . . . . 6 . . . . . . 1 . . . . 1 . . 1 . . 1 1 . . . Unreport Threat 20 | . . . . . 3 1 . . . . 4 . . . . 1 . 3 . . . . 2 . . 4 . . 2 . . . . Locate Traps 6 | . . . . . . . . . . . 2 . . . . 1 . 2 . . . . . . . . . . . 1 . . . Disarm Traps 2 | . . . . . . . . . . . 1 . . . . . . . . . . . . . . . . . . 1 . . . Reprogram Traps 2 | . . . . . . . . . . . . . . . . . . 2 . . . . . . . . . . . . . . . Dispatch Records 2 | . . . . . . 1 . . . . 1 . . . . . . . . . . . . . . . . . . . . . . Security Status 1 | . . . . . . 1 . . . . . . . . . . . . . . . . . . . . . . . . . . . Surveillance Status 1 | . . . . . . . . . . . 1 . . . . . . . . . . . . . . . . . . . . . . Transport Status 1 | . . . . . . . . . . . 1 . . . . . . . . . . . . . . . . . . . . . . Investigation Status 2 | . . . . . . 1 . . . . 1 . . . . . . . . . . . . . . . . . . . . . . Extermination Status 1 | . . . . . . 1 . . . . . . . . . . . . . . . . . . . . . . . . . . . Reinforcement Status 1 | . . . . . . . . . . . 1 . . . . . . . . . . . . . . . . . . . . . . Recall Investigation 3 | . . . . . . . . . . . 3 . . . . . . . . . . . . . . . . . . . . . . Recall Extermination 3 | . . . . . . 3 . . . . . . . . . . . . . . . . . . . . . . . . . . . Recall Reinforcements 2 | . . . . . . . . . . . 2 . . . . . . . . . . . . . . . . . . . . . . Hauler Manifests 9 | . . . . . 1 3 . . . . 2 . . . . 1 . 1 . . . . . . . . . . . 1 . . . Registered Components 7 | . . . . . 1 2 . . . . 1 . . . . 1 . . . . . . . . . . . . . 1 . . 1 Registered Prototypes 4 | . . . . . 1 1 . . . . 1 . . . . . . 1 . . . . . . . . . . . . . . . Zone Layout 10 | . . . . . . 3 . . . . 1 . . . . 4 . 2 . . . . . . . . . . . . . . . Proto ID Catalog 1 | . . . 1 . . . . . . . . . . . . . . . . . . . . . . . . . . . . . . Release Object 1 | . . . . . . . . . . . . . . . . . . . . . . . . . . . . . . . . 1 . Fabricator Hacks 35 | . . . . . . 3 . . . . 13 . . . . 7 . 7 . . . . 3 . 2 . . . . . . . . Network Status 6 | . . . . . . 3 . . . . 1 . . . . 1 . . . . . . 1 . . . . . . . . . . Load Schematic 15 | . . . . . . . . . . . 6 . . . . 3 . 4 . . . . 1 . 1 . . . . . . . . Build 14 | . . . . . . . . . . . 6 . . . . 3 . 3 . . . . 1 . 1 . . . . . . . . Repair Station Hacks 3 | . . . . . . . . . . . . . . . . . . . . . . . 3 . . . . . . . . . . Scan Component 1 | . . . . . . . . . . . . . . . . . . . . . . . 1 . . . . . . . . . . Repair 1 | . . . . . . . . . . . . . . . . . . . . . . . 1 . . . . . . . . . . Refit 1 | . . . . . . . . . . . . . . . . . . . . . . . 1 . . . . . . . . . . Recycling Unit Hacks 21 | . 2 . . . 1 4 . . . . 5 . . . . 3 . 3 . . . . . . 2 . . . . . 1 . . Retrieve Components 21 | . 2 . . . 1 4 . . . . 5 . . . . 3 . 3 . . . . . . 2 . . . . . 1 . . Scanalyzer 14 | . . . . . 1 3 . . . . 2 . . . . . . 3 . . . . 3 . . . . . . 2 . . . Insert Component 8 | . . . . . . 2 . . . . 1 . . . . . . 2 . . . . 2 . . . . . . 1 . . . Analyze 2 | . . . . . . . . . . . . . . . . . . 1 . . . . 1 . . . . . . . . . . Retrieve Study 4 | . . . . . 1 1 . . . . 1 . . . . . . . . . . . . . . . . . . 1 . . . Garrison Access Hacks 12 | . . . . . . 4 . . . . 2 . . . . 2 . 2 . . . . . . . . . . . . . . 2 Seal Access 12 | . . . . . . 4 . . . . 2 . . . . 2 . 2 . . . . . . . . . . . . . . 2 Unauthorized Hacks 115 | . 10 . . . 10 23 . . . . 15 . . . . 20 . 12 . . . . 4 . 7 6 . . 2 3 . . 3 Terminals 100 | . 8 . . . 9 19 . . . . 11 . . . . 17 . 11 . . . . 4 . 7 6 . . 2 3 . . 3 Assimilate 25 | . 2 . . . 3 6 . . . . 1 . . . . 3 . 3 . . . . 1 . 3 1 . . . 1 . . 1 Botnet 59 | . 5 . . . 5 11 . . . . 9 . . . . 7 . 6 . . . . 3 . 3 5 . . 2 1 . . 2 Detonate 7 | . . . . . . . . . . . . . . . . 6 . 1 . . . . . . . . . . . . . . . Disrupt 1 | . . . . . . 1 . . . . . . . . . . . . . . . . . . . . . . . . . . . Operators 8 | . 1 . . . 1 1 . . . . 1 . . . . 1 . 1 . . . . . . 1 . . . . 1 . . . Fabricators . | . . . . . . . . . . . . . . . . . . . . . . . . . . . . . . . . . . Repair Stations . | . . . . . . . . . . . . . . . . . . . . . . . . . . . . . . . . . . Recycling Units 15 | . 2 . . . 1 4 . . . . 4 . . . . 3 . 1 . . . . . . . . . . . . . . . Reject 15 | . 2 . . . 1 4 . . . . 4 . . . . 3 . 1 . . . . . . . . . . . . . . . Scanalyzers . | . . . . . . . . . . . . . . . . . . . . . . . . . . . . . . . . . . Garrison Access . | . . . . . . . . . . . . . . . . . . . . . . . . . . . . . . . . . . Data Cores Recovered 6 | . . . . . . 2 . . . . 1 . . . . . . . . . . . . . 1 2 . . . . . . . Used 2 | . . . . . . . . . . . 1 . . . . . . . . . . . . . . 1 . . . . . . . Hacking Detections 131 | . 5 . . . 7 16 . . . . 20 . . . . 18 . 18 . . . . 10 . 9 8 2 . 9 4 2 . 3 Full Trace Events 32 | . 4 . . . . 1 . . . . 7 . . . . 5 . 7 . . . . 2 . 2 . . . 3 . . . 1 Feedback Events 1 | . . . . . . . . . . . . . . . . . . 1 . . . . . . . . . . . . . . . Corruption 1 | . . . . . . . . . . . . . . . . . . 1 . . . . . . . . . . . . . . . Feedback Blocked . | . . . . . . . . . . . . . . . . . . . . . . . . . . . . . . . . . . Robot Schematics Acquired 3 | . . . . . . . . . . . . . . 3 . . . . . . . . . . . . . . . . . . . Robots Built . | . . . . . . . . . . . . . . . . . . . . . . . . . . . . . . . . . . Authchips . | . . . . . . . . . . . . . . . . . . . . . . . . . . . . . . . . . . Time . | . . . . . . . . . . . . . . . . . . . . . . . . . . . . . . . . . . Total Robot Build Rating . | . . . . . . . . . . . . . . . . . . . . . . . . . . . . . . . . . . Part Schematics Acquired 20 | . . . . . . . . . 1 . 4 . . 12 . . . 1 . . 1 . 1 . . . . . . . . . . Parts Built 15 | . . . . . . . . . . . 6 . . . . 4 . 3 . . . . 1 . 1 . . . . . . . . Authchips . | . . . . . . . . . . . . . . . . . . . . . . . . . . . . . . . . . . Time 1618 | . . . . . . . . . . . 496 . . . . 340 . 373 . . . . 187 . 222 . . . . . . . . Total Part Build Rating 94 | . . . . . . . . . . . 36 . . . . 21 . 21 . . . . 7 . 9 . . . . . . . . Part Studies Acquired 4 | . . . . . 1 1 . . . . 1 . . . . . . . . . . . . . . . . . . 1 . . . Parts Repaired 1 | . . . . . . . . . . . . . . . . . . . . . . . 1 . . . . . . . . . . Time 112 | . . . . . . . . . . . . . . . . . . . . . . . 112 . . . . . . . . . . Parts Recycled . | . . . . . . . . . . . . . . . . . . . . . . . . . . . . . . . . . . Recycled Matter . | . . . . . . . . . . . . . . . . . . . . . . . . . . . . . . . . . . Retrieved Matter . | . . . . . . . . . . . . . . . . . . . . . . . . . . . . . . . . . . Retrieved Components 94 | . 15 . . . 9 22 . . . . 19 . . . . 10 . 12 . . . . . . 5 . . . . . 2 . . Parts Scanalyzed 2 | . . . . . . . . . . . . . . . . . . 1 . . . . 1 . . . . . . . . . . Part Schematics Acquired 2 | . . . . . . . . . . . . . . . . . . 1 . . . . 1 . . . . . . . . . . Parts Damaged 1 | . . . . . . . . . . . . . . . . . . . . . . . 1 . . . . . . . . . . Bothacking | -11 -10 -10 -10 -9 -8 -7 -7 -7 -7 -6 -6 -6 -6 -6 -5 -5 -5 -5 -5 -5 -5 -4 -4 -4 -4 -4 -4 -4 -4 -3 -3 -3 -2 ------------ Run | Yrd Mat Min Exi Min Mat Fac Low Low Dat Pro Fac Low Low Zio Pro Fac Was Fac Upp Upp Zhi Pro Fac Was Fac Ext Cet Arc Hub Res Arm Lab Res Used RIF Installer . | . . . . . . . . . . . . . . . . . . . . . . . . . . . . . . . . . . Robots Hacked 12 | . 1 . . . 2 1 . . 1 1 3 . . 1 . 1 . 1 . . . . . . . . . . . . . . . Non-combat 9 | . 1 . . . 2 1 . . . . 3 . . . . 1 . 1 . . . . . . . . . . . . . . . Combat 3 | . . . . . . . . . 1 1 . . . 1 . . . . . . . . . . . . . . . . . . . Robot Hacks Applied 16 | . 2 . . . 3 2 . . 1 1 4 . . 1 . 1 . 1 . . . . . . . . . . . . . . . parse_system 8 | . 1 . . . 2 . . . 1 1 1 . . 1 . . . 1 . . . . . . . . . . . . . . . no_distress 6 | . 1 . . . 1 1 . . . . 2 . . . . 1 . . . . . . . . . . . . . . . . . find_fabricator 2 | . . . . . . 1 . . . . 1 . . . . . . . . . . . . . . . . . . . . . . Relay Couplers Released 2 | . . . . . . . . . . . . . . . . . . . . . . . 2 . . . . . . . . . . Machine Destruction 2 | . . . . . . . . . . . . . . . . . . . . . . . 2 . . . . . . . . . . Fabnet Peak Effective % . | . . . . . . . . . . . . . . . . . . . . . . . . . . . . . . . . . . Robots Rewired . | . . . . . . . . . . . . . . . . . . . . . . . . . . . . . . . . . . Allies Hacked 1 | . . . . . . . . . . . 1 . . . . . . . . . . . . . . . . . . . . . . Hacks Repelled . | . . . . . . . . . . . . . . . . . . . . . . . . . . . . . . . . . . Allies | -11 -10 -10 -10 -9 -8 -7 -7 -7 -7 -6 -6 -6 -6 -6 -5 -5 -5 -5 -5 -5 -5 -4 -4 -4 -4 -4 -4 -4 -4 -3 -3 -3 -2 -------- Run | Yrd Mat Min Exi Min Mat Fac Low Low Dat Pro Fac Low Low Zio Pro Fac Was Fac Upp Upp Zhi Pro Fac Was Fac Ext Cet Arc Hub Res Arm Lab Res Total Allies 70 | . 1 2 . 1 1 4 . . . 1 1 . . 2 . 3 19 2 . . . . 1 . 2 4 5 . . . . . 21 Largest Group 20 | . 1 3 3 1 1 4 4 4 4 5 5 . . 2 . 2 20 7 . . . . 1 . 1 4 9 9 7 . . . 14 Highest-Rated Group 738 | . 10 56 56 31 10 56 56 56 56 152 82 . . 42 . 52 712 160 . . . . 10 . 26 258 738 738 569 . . . 198 Highest-Rated Ally 159 | . 10 31 31 31 10 26 26 26 26 96 26 . . 28 . 26 50 26 . . . . 10 . 26 159 159 159 96 . . . 15 Total Orders . | . . . . . . . . . . . . . . . . . . . . . . . . . . . . . . . . . . Ally Attacks 219 | . . . . . . . . . . 18 . . . . . . . 15 . . . . . . . 1 15 4 72 . . . 94 Total Damage 6197 | . . . . . . . . . . 1098 . . . . . . . 151 . . . . . . . 23 452 91 2738 . . . 1644 Kills 23 | . . . . . . . . . . 3 . . . . . . . . . . . . . . . 1 2 1 11 . . . 5 Allies Corrupted 10 | . . . . . . . . . . 1 2 . . . . 1 . 1 . . . . . . . . . . 5 . . . . Allies Melted . | . . . . . . . . . . . . . . . . . . . . . . . . . . . . . . . . . . Intel | -11 -10 -10 -10 -9 -8 -7 -7 -7 -7 -6 -6 -6 -6 -6 -5 -5 -5 -5 -5 -5 -5 -4 -4 -4 -4 -4 -4 -4 -4 -3 -3 -3 -2 ------- Run | Yrd Mat Min Exi Min Mat Fac Low Low Dat Pro Fac Low Low Zio Pro Fac Was Fac Upp Upp Zhi Pro Fac Was Fac Ext Cet Arc Hub Res Arm Lab Res Active Infowar (turns) 25086 | . 689 461 1435 468 909 1747 429 384 91 507 2162 384 403 1194 308 1085 . 2371 247 263 576 601 1300 61 969 683 837 101 981 1650 1144 191 455 Optics 1 | . . . . . . . . . . . . . . . . . . . . . . . . . . . . . 1 . . . . Sensors 6 | . . 2 . . . 2 . . . . . . . . . . . . . . . . . . . . . . . . . . 2 Zeronet 3 | . . . . . . . . . . . 3 . . . . . . . . . . . . . . . . . . . . . . Terrain 1 | . . . . . . . . . . . . . . . . . . . . . . . . . . . . . . . . . 1 Structural 24701 | . 689 459 1435 468 909 1747 429 384 91 507 2162 384 403 1194 308 709 . 2371 247 263 576 601 1300 61 969 683 837 101 980 1650 1144 191 449 Machine Analysis 2 | . . . . . . . . . . . . . . . . . . . . . . . . . . . . . . . . . 2 Cloaking 1 | . . . . . . . . . . . . . . . . . . . . . . . . . . . . . . . . . 1 Jamming 376 | . . . . . . . . . . . . . . . . 376 . . . . . . . . . . . . . . . . . Robot Analysis Total 10 | . 1 . . . 1 3 . . . . . . . . . . . 1 . . 4 . . . . . . . . . . . . Derelict Logs Recovered 17 | . . 1 . 2 . . 1 1 . 3 . 1 1 1 1 . . . 2 2 . 1 . . . . . . . . . . . Drone Launches . | . . . . . . . . . . . . . . . . . . . . . . . . . . . . . . . . . . Drone Recoveries . | . . . . . . . . . . . . . . . . . . . . . . . . . . . . . . . . . . Exploration | -11 -10 -10 -10 -9 -8 -7 -7 -7 -7 -6 -6 -6 -6 -6 -5 -5 -5 -5 -5 -5 -5 -4 -4 -4 -4 -4 -4 -4 -4 -3 -3 -3 -2 ------------- Run | Yrd Mat Min Exi Min Mat Fac Low Low Dat Pro Fac Low Low Zio Pro Fac Was Fac Upp Upp Zhi Pro Fac Was Fac Ext Cet Arc Hub Res Arm Lab Res Turns Passed 27315 | 47 1414 461 1516 468 922 1867 429 384 91 507 2220 386 403 1229 308 1517 135 2475 247 263 576 601 1312 61 969 686 837 101 982 1709 1239 280 673 Spaces Moved 48926 | 39 1771 692 1338 895 1087 4152 929 1038 150 963 3971 989 1063 2874 979 3013 233 4019 939 797 241 779 2507 87 2035 1643 389 156 1830 3244 1764 1000 1320 Core 2 | 1 . . 1 . . . . . . . . . . . . . . . . . . . . . . . . . . . . . . Treads . | . . . . . . . . . . . . . . . . . . . . . . . . . . . . . . . . . . Legs . | . . . . . . . . . . . . . . . . . . . . . . . . . . . . . . . . . . Wheels 290 | 38 252 . . . . . . . . . . . . . . . . . . . . . . . . . . . . . . . . Hover . | . . . . . . . . . . . . . . . . . . . . . . . . . . . . . . . . . . Flight 48634 | . 1519 692 1337 895 1087 4152 929 1038 150 963 3971 989 1063 2874 979 3013 233 4019 939 797 241 779 2507 87 2035 1643 389 156 1830 3244 1764 1000 1320 Fastest Speed 16 | 50 34 34 34 34 29 26 26 26 26 26 26 28 26 26 26 26 26 20 20 20 20 20 18 18 18 18 18 18 18 16 16 16 16 Average Speed 24 | 98 43 34 34 34 33 26 26 26 26 26 28 28 26 26 26 26 26 23 20 20 20 20 19 18 18 18 18 18 18 16 17 16 17 Slowest Speed 125 | 100 125 34 50 34 112 29 26 26 26 26 31 28 28 97 26 26 26 26 20 20 20 20 104 18 18 18 18 18 18 96 100 96 101 Overloaded Moves . | . . . . . . . . . . . . . . . . . . . . . . . . . . . . . . . . . . Propulsion Burnouts . | . . . . . . . . . . . . . . . . . . . . . . . . . . . . . . . . . . Robots Hopped 139 | . 7 . . 1 8 24 . . . . 11 . . . . 16 . 9 . . . . 11 . 12 8 . . 5 13 1 . 13 Potential Cave-ins 19 | . . . . . . . . . . . . . . . . . . 1 . . . . 2 . . . . . . 7 . . 9 Cave-ins Triggered 1 | . . . . . . . . . . . . . . . . . . . . . . . . . . . . . . 1 . . . Exploration Rate (%) 82 | 4 100 99 91 91 73 79 93 98 76 98 71 97 98 92 98 69 87 71 95 92 62 97 54 74 51 99 88 96 96 93 98 99 36 Regions Visited 33 Branch Regions 21 Pre-discovered Areas 1 | . . . . . . . . . 1 . . . . . . . . . . . . . . . . . . . . . . . . Known Exits Taken 24 | . . . . . 1 1 1 1 1 1 1 1 1 1 1 . . 1 1 1 1 1 . . 1 1 1 1 1 1 1 1 . Unknown Exits Taken 5 | 1 1 1 1 1 . . . . . . . . . . . . . . . . . . . . . . . . . . . . . Scrap Searched 30 | . . 2 . 1 . . 1 4 . 1 . 4 5 4 1 . . . 1 3 . 3 . . . . . . . . . . . Spaces Dug 1384 | . 32 . . 19 . 4 . . 1 . 94 . . 18 . 156 . 228 2 . . . 31 . 25 . . . 625 55 25 1 68 Terrain Destroyed 4195 | . 249 . 2 70 11 70 6 2 1 7 546 36 29 73 14 485 7 593 31 40 . 14 185 8 121 13 7 3 968 256 198 2 148 Melee . | . . . . . . . . . . . . . . . . . . . . . . . . . . . . . . . . . . Projectile 1830 | . . . 2 . . 6 6 2 1 7 104 36 29 46 14 202 7 223 31 40 . 14 118 8 56 13 7 3 286 256 163 2 148 AOE 2365 | . 249 . . 70 11 64 . . . . 442 . . 27 . 283 . 370 . . . . 67 . 65 . . . 682 . 35 . . Terrain Rammed 1 | . . . . . . . . . . . . . . . . . . . . . 1 . . . . . . . . . . . . Walls Destroyed 1 | . . . . . . . . . . . . . . . . . . . . . 1 . . . . . . . . . . . . Machines Disabled . | . . . . . . . . . . . . . . . . . . . . . . . . . . . . . . . . . . Actions | -11 -10 -10 -10 -9 -8 -7 -7 -7 -7 -6 -6 -6 -6 -6 -5 -5 -5 -5 -5 -5 -5 -4 -4 -4 -4 -4 -4 -4 -4 -3 -3 -3 -2 --------- Run | Yrd Mat Min Exi Min Mat Fac Low Low Dat Pro Fac Low Low Zio Pro Fac Was Fac Upp Upp Zhi Pro Fac Was Fac Ext Cet Arc Hub Res Arm Lab Res Total 60319 | 44 2127 896 2394 1008 1501 4651 1079 1118 200 1113 4645 1061 1135 3130 1007 3559 293 5185 971 860 766 1208 3171 110 2546 1982 1131 219 2266 3928 2331 1095 1589 Wait 6769 | . 112 179 1025 70 194 293 126 30 48 55 223 26 6 55 . 325 51 609 4 15 520 416 433 . 394 299 721 59 156 100 146 11 68 Move 48628 | 38 1756 691 1337 892 1070 4104 928 1037 149 962 3949 988 1062 2873 978 2982 232 4000 938 796 240 778 2485 86 2011 1626 388 155 1819 3221 1761 999 1297 Hop 127 | . 7 . . 1 8 23 . . . . 10 . . . . 15 . 9 . . . . 11 . 11 8 . . 5 8 1 . 10 Pick Up 147 | . 4 . . 1 9 6 . 1 . 2 9 3 3 3 1 1 2 19 2 3 . . 9 . 3 1 . . 18 20 16 6 5 Fast Attach 167 | 6 5 4 14 . 7 6 . 1 . 1 17 1 2 5 . 9 . 9 1 . 2 . 18 . 4 . . . 1 10 10 16 18 Attach 30 | . 1 . . . 8 3 . 1 . . 3 . . 2 . . . 1 . . . . 2 . . . . . . 4 1 1 3 Detach 34 | . 1 . 1 . 1 1 . . . . 12 . 1 . . 1 . 3 . . . . . . . . . . 1 4 1 . 7 Swap 161 | . 14 3 . 7 5 12 . . . . 12 2 1 4 . 5 . 9 1 . 2 . 10 . 2 2 2 . 7 11 17 11 22 Drop 244 | . 3 6 13 1 13 14 . . . 3 18 3 4 8 . 9 . 24 2 3 1 . 16 . 7 1 . . 17 25 14 20 19 Fire 2336 | . 169 11 4 31 67 95 15 17 1 47 205 25 33 157 17 118 8 233 19 25 . 10 106 13 64 27 16 5 143 310 220 22 103 Melee 24 | . 3 . . . 4 2 . . 2 1 4 . . 1 . 1 . 6 . . . . . . . . . . . . . . . Ram 2 | . 1 . . . . . . . . . . . . . . . . . . . 1 . . . . . . . . . . . . Kick . | . . . . . . . . . . . . . . . . . . . . . . . . . . . . . . . . . . Crush . | . . . . . . . . . . . . . . . . . . . . . . . . . . . . . . . . . . Escape Stasis 84 | . . . . . . 31 . . . . 45 . . . . . . . . . . . . . . . . . . 2 6 . . Rewire . | . . . . . . . . . . . . . . . . . . . . . . . . . . . . . . . . . . Trap 192 | . 23 . . . 83 23 . . . . 17 . . . . 46 . . . . . . . . . . . . . . . . . Miscellaneous 1374 | . 28 2 . 5 32 38 10 31 . 42 121 13 23 22 11 47 . 263 4 18 . 4 81 11 50 18 4 . 99 213 138 9 37 Route ------- -11/Scrapyard -10/Materials (discovered 5 exits: [*Mat x3] / [*Min] / [*Sub]) -10/Mines (discovered 4 exits: [*Mat x2] / *Exi / [*Sub]) -10/Exiles (discovered 2 exits: *Min x2) -9/Mines (discovered 2 exits: *Mat x2) -8/Materials (discovered 4 exits: *Fac x3 / *Sto) -7/Factory (discovered 4 exits: *Fac x2 / *Low x2) -7/Lower Caves (discovered 2 exits: *Low / *Zio) -7/Lower Caves (discovered 2 exits: *Fac / *Dat) -7/Data Miner -6/Proximity Caves -6/Factory (discovered 6 exits: *Fac x4 / *Low x2) -6/Lower Caves -6/Lower Caves (discovered 2 exits: *Fac / *Zio) -6/Zion -5/Proximity Caves -5/Factory (discovered 6 exits: *Fac x4 / *Upp x2) -5/Waste -5/Factory (discovered 6 exits: *Fac x4 / *Upp x2) -5/Upper Caves -5/Upper Caves (discovered 2 exits: *Fac / *Zhi) -5/Zhirov -4/Proximity Caves -4/Factory (discovered 5 exits: *Res x4 / *Ext) -4/Waste -4/Factory (discovered 5 exits: *Res x3 / *Upp / *Ext) -4/Extension (discovered 3 exits: *Res x2 / *Cet) -4/Cetus (discovered 3 exits: *Res x2 / *Arc) -4/Archives (discovered 3 exits: *Res / *Hub x2) -4/Hub_04(d) (discovered 4 exits: *Res x4) -3/Research (discovered 6 exits: *Res x3 / *Arm / *Tes x2) -3/Armory (discovered 3 exits: *Res x2 / *Lab) -3/Lab -2/Research (discovered 5 exits: Acc x3 / *Qua x2) History --------- Turn | Location | Event 1 | -11/Scrapyard | Upgraded with Propulsion slot (x1) 1 | -11/Scrapyard | Upgraded with Utility slot (x1) 1 | -11/Scrapyard | Upgraded with Weapon slot (x2) 15 | -11/Scrapyard | Discovered new exit (range 15) 48 | -11/Scrapyard | Entered Materials 304 | -10/Materials | Build established: Gunner 378 | -10/Materials | Core integrity fell below 50% 417 | -10/Materials | Discovered new exit (range 8) 423 | -10/Materials | Discovered new exit (range 15) 480 | -10/Materials | Reached level 2 492 | -10/Materials | Upgraded with Propulsion slot (x1) 513 | -10/Materials | Discovered new exit (range 12) 581 | -10/Materials | Discovered new exit (range 14) 866 | -10/Materials | Discovered new exit (range 13) 990 | -10/Materials | Build established: Scavenger-Mutant 1036 | -10/Materials | Reached level 3 1041 | -10/Materials | Upgraded with Weapon slot (x1) 1292 | -10/Materials | Reached level 4 1462 | -10/Materials | Entered Mines 1462 | -10/Mines | Accompanied by 1 ally 1473 | -10/Mines | Learned Materials emergency access door positions 1540 | -10/Mines | Deemed a non-threat by the Exiles lab entrance 1540 | -10/Mines | Discovered new exit (range 6) 1570 | -10/Mines | Reached level 5 1613 | -10/Mines | Build established: Scavenger-Gunner 1622 | -10/Mines | Discovered new exit (range 6) 1648 | -10/Mines | Discovered new exit (range 5) 1675 | -10/Mines | Found a damaged Exp. Sensor Array with a note attached 1675 | -10/Mines | Found Prototype Device 1675 | -10/Mines | Identified Exp. Sensor Array 1712 | -10/Mines | Discovered new exit (range 6) 1923 | -10/Mines | Entered Exiles 1923 | -10/Exiles | Accompanied by 3 allies 1929 | -10/Exiles | Discovered new exit (range 15) 1938 | -10/Exiles | Met 8R-AWN 1953 | -10/Exiles | Led the pair of lost Derelicts to a safe place 1984 | -10/Exiles | Met EX-HEX 2001 | -10/Exiles | Met EX-BIN 2033 | -10/Exiles | Met EX-DEC 2058 | -10/Exiles | Discovered new exit (range 14) 2084 | -10/Exiles | Visited The Gauntlet 2141 | -10/Exiles | Aligned with FarCom system 2141 | -10/Exiles | Given EX-Vault access code 2149 | -10/Exiles | Opened EX-Vault 2166 | -10/Exiles | Warned to stay clear of 0b10 Research branches 3108 | -10/Exiles | Found Gui. Plasma Cannon 3307 | -10/Exiles | Found PSU Rigger 3439 | -10/Exiles | Left Exiles lab with PSU Rigger 3439 | -10/Exiles | Entered Mines 3484 | -9/Mines | Assembled infested the area 3500 | -9/Mines | Met a Derelict shopkeep closing up shop 3525 | -9/Mines | Found a hidden stash of uninstalled traps 3597 | -9/Mines | Received a Mining Laser from a helpful Derelict 3637 | -9/Mines | Discovered new exit (range 11) 3639 | -9/Mines | Learned Materials stockpile data 3688 | -9/Mines | Discovered new exit (range 14) 3709 | -9/Mines | Reached level 6 3740 | -9/Mines | Build established: Scavenger-Skirmisher 3831 | -9/Mines | Joined a pair of Derelicts in attacking an 0b10 outpost 3907 | -9/Mines | Entered Materials 3908 | -8/Materials | Identified exit to Storage 3909 | -8/Materials | Reached level 7 3926 | -8/Materials | Upgraded with Utility slot (x1) 3926 | -8/Materials | Upgraded with Weapon slot (x1) 3948 | -8/Materials | Garrison activated, responded to threat 3949 | -8/Materials | Core integrity fell below 50% 3972 | -8/Materials | Identified exit to Factory 4165 | -8/Materials | Reached level 8 4236 | -8/Materials | Upgraded with Propulsion slot (x1) 4412 | -8/Materials | Central database locked down 4508 | -8/Materials | Build established: Scavenger-Sprinter 4532 | -8/Materials | Reached level 9 4536 | -8/Materials | Upgraded with Power slot (x1) 4536 | -8/Materials | Upgraded with Utility slot (x1) 4829 | -8/Materials | Entered Factory 4831 | -7/Factory | Reached level 10 5127 | -7/Factory | Reached level 11 5231 | -7/Factory | Upgraded with Utility slot (x1) 5508 | -7/Factory | Discovered new exit (range 5) 5533 | -7/Factory | Build established: Hacker-Sprinter 5555 | -7/Factory | Discovered new exit (range 7) 5660 | -7/Factory | Reached level 12 5700 | -7/Factory | Destroyed 7 combat bots 5715 | -7/Factory | Central database locked down 5750 | -7/Factory | Discovered new exit (range 15) 5822 | -7/Factory | Identified exit to Lower Caves 6136 | -7/Factory | Found Prototype Launcher 6136 | -7/Factory | Identified Rocket Array 6197 | -7/Factory | Reached level 13 6218 | -7/Factory | Destroyed 7 combat bots 6516 | -7/Factory | Discovered new exit (range 16) 6696 | -7/Factory | Entered Lower Caves 6696 | -7/Lower Caves | Accompanied by 4 allies 6739 | -7/Lower Caves | Learned location of 1 exit from Factory 6783 | -7/Lower Caves | Reached level 14 6908 | -7/Lower Caves | Encountered a Warlord checkpoint 6935 | -7/Lower Caves | Attracted the attention of an 0b10 checkpoint 7005 | -7/Lower Caves | Discovered new exit (range 10) 7006 | -7/Lower Caves | A Derelict revealed a hidden shortcut to a safe place 7011 | -7/Lower Caves | Identified exit to Zion 7015 | -7/Lower Caves | Identified exit to Lower Caves 7125 | -7/Lower Caves | Entered another Lower Caves area 7125 | -7/Lower Caves | Accompanied by 4 allies 7125 | -7/Lower Caves | Upgraded with Utility slot (x1) 7132 | -7/Lower Caves | Discovered new exit (range 13) 7135 | -7/Lower Caves | Identified exit to Factory 7198 | -7/Lower Caves | Core integrity fell below 50% 7219 | -7/Lower Caves | Spotted B-75 Beast 7235 | -7/Lower Caves | Destroyed B-75 Beast 7317 | -7/Lower Caves | Learned Factory terminal intel 7358 | -7/Lower Caves | Encountered a Warlord checkpoint 7383 | -7/Lower Caves | Discovered new exit (range 4) 7385 | -7/Lower Caves | Identified exit to Data Miner 7509 | -7/Lower Caves | Entered Data Miner 7509 | -7/Data Miner | Accompanied by 4 allies 7509 | -7/Data Miner | Discovered new exit (range 6) 7511 | -7/Data Miner | Reached level 15 7511 | -7/Data Miner | Identified exit to Proximity Caves 7515 | -7/Data Miner | Met Data Miner 7526 | -7/Data Miner | Acquired the access code to Warlord's prototype stash 7526 | -7/Data Miner | Learned location of Section 7 (-2) 7528 | -7/Data Miner | Received God Mode back door access code from Data Miner 7600 | -7/Data Miner | Entered Proximity Caves 7600 | -6/Proximity Caves | Accompanied by 4 allies 7612 | -6/Proximity Caves | Learned 8 Factory zone layouts 7614 | -6/Proximity Caves | Learned 12 Factory zone layouts 7618 | -6/Proximity Caves | Spotted B-75 Beast 7643 | -6/Proximity Caves | Destroyed B-75 Beast 7662 | -6/Proximity Caves | Learned location of 1 exit from Factory 7686 | -6/Proximity Caves | Reached level 16 7707 | -6/Proximity Caves | Attracted the attention of an 0b10 outpost 7717 | -6/Proximity Caves | Escorted by Enhanced Grunt 7813 | -6/Proximity Caves | Reached level 17 7845 | -6/Proximity Caves | Destroyed 7 combat bots 7937 | -6/Proximity Caves | Discovered exit to Factory (range 8) 8008 | -6/Proximity Caves | Upgraded with Utility slot (x2) 8107 | -6/Proximity Caves | Entered Factory 8107 | -6/Factory | Accompanied by 4 allies 8108 | -6/Factory | Identified exit to Factory 8109 | -6/Factory | Reached level 18 8110 | -6/Factory | Loaded intel: 24 terminal locations 8170 | -6/Factory | Discovered new exit (range 11) 8173 | -6/Factory | Identified exit to Lower Caves 8187 | -6/Factory | Spotted B-75 Beast 8593 | -6/Factory | Assembled infested ambush trap array 8664 | -6/Factory | Fabricated Adv. Hacking Suite? 8789 | -6/Factory | Fabricated Adv. Hacking Suite? 8980 | -6/Factory | Cargo convoy interrupted 8987 | -6/Factory | Core integrity fell below 50% 8989 | -6/Factory | Reached level 19 8996 | -6/Factory | Incoming assault squad redirected 9022 | -6/Factory | Core integrity fell below 20% 9046 | -6/Factory | Destroyed 10 combat bots 9070 | -6/Factory | Found Prototype Processor 9070 | -6/Factory | Identified Exp. Signal Interpreter 9084 | -6/Factory | Fabricated Enh. Force Rifle? 9093 | -6/Factory | Build established: Wizard-Sprinter 9138 | -6/Factory | Fabricated Enh. Force Rifle? 9520 | -6/Factory | Unchained authorized (DW-4LL) 9590 | -6/Factory | Destroyed 10 combat bots 9652 | -6/Factory | Fabricated Enh. Force Rifle? 9698 | -6/Factory | Fabricated Enh. Force Rifle? 9706 | -6/Factory | Reached level 20 9727 | -6/Factory | Upgraded with Utility slot (x1) 9846 | -6/Factory | Destroyed DW-4LL 9857 | -6/Factory | First assault squad dispatched 9857 | -6/Factory | Garrison activated, responded to threat 9880 | -6/Factory | Found Prototype Device 9880 | -6/Factory | Identified Zeronet Interface 9883 | -6/Factory | Found Exp. Weapon Cycler 9886 | -6/Factory | Found Exp. Armor Integrity Analyzer 10179 | -6/Factory | Build established: Hacker-Sprinter 10280 | -6/Factory | Reached level 21 10327 | -6/Factory | Entered Lower Caves 10479 | -6/Lower Caves | Learned location of 1 exit from Proximity Caves 10517 | -6/Lower Caves | Discovered new exit (range 12) 10520 | -6/Lower Caves | Identified exit to Lower Caves 10713 | -6/Lower Caves | Entered another Lower Caves area 10713 | -6/Lower Caves | Spotted B-75 Beast 10724 | -6/Lower Caves | Destroyed B-75 Beast 10731 | -6/Lower Caves | Attracted the attention of an 0b10 outpost 10783 | -6/Lower Caves | Encountered a Warlord checkpoint 10785 | -6/Lower Caves | Destroyed 10 combat bots 10795 | -6/Lower Caves | Discovered exit to Factory (range 6) 10814 | -6/Lower Caves | Learned Factory security intel 10873 | -6/Lower Caves | Found DCF Scrap (14 items) 10876 | -6/Lower Caves | Upgraded with Propulsion slot (x1) 10891 | -6/Lower Caves | Discovered exit to Zion (range 15) 10959 | -6/Lower Caves | Attracted the attention of an 0b10 checkpoint 11116 | -6/Lower Caves | Entered Zion 11135 | -6/Zion | Discovered new exit (range 14) 11139 | -6/Zion | Identified exit to Proximity Caves 11154 | -6/Zion | System corruption cleaned by Quarantine Array 11162 | -6/Zion | Learned Factory security intel 11230 | -6/Zion | Visited the Megawrench Repair Shop 11255 | -6/Zion | Found Prototype Device 11255 | -6/Zion | Identified Bomb Factory No. 2 11271 | -6/Zion | Found Prototype Device 11271 | -6/Zion | Identified Mobile Refinery Mk. CCLXVII 11300 | -6/Zion | Build established: Machinist-Sprinter 11333 | -6/Zion | Gained Derelict followers 11437 | -6/Zion | Rebuked by Imprinter 11526 | -6/Zion | Warned about damaging Zion machinery 11536 | -6/Zion | Caused signficant damage to Zion machinery 11536 | -6/Zion | Attacked by Zionites 11718 | -6/Zion | Destroyed Imprinter 11730 | -6/Zion | Extracted access codes from Imprinter's data core 12108 | -6/Zion | Spotted F5-3SF(B) 12113 | -6/Zion | Destroyed F5-3SF(B) 12127 | -6/Zion | Spotted UY-TAG(B) 12134 | -6/Zion | Destroyed UY-TAG(B) 12345 | -6/Zion | Entered Proximity Caves 12347 | -5/Proximity Caves | Reached level 22 12441 | -5/Proximity Caves | Spotted B-75 Beast 12444 | -5/Proximity Caves | Destroyed B-75 Beast 12653 | -5/Proximity Caves | Entered Factory 12803 | -5/Factory | Discovered new exit (range 8) 12838 | -5/Factory | Identified exit to Factory 12995 | -5/Factory | Discovered exit to Factory (range 3) 13130 | -5/Factory | Reached level 23 13160 | -5/Factory | Upgraded with Utility slot (x1) 13253 | -5/Factory | First assault squad dispatched 13280 | -5/Factory | Discovered new exit (range 5) 13281 | -5/Factory | Identified exit to Upper Caves 13317 | -5/Factory | Fabricated Enh. Force Rifle? 13423 | -5/Factory | Destroyed 10 combat bots 13707 | -5/Factory | Fabricated Cld. Plasma Cannon? 13788 | -5/Factory | Fabricated Stasis Canceller? 13790 | -5/Factory | Discovered exit to Upper Caves (range 11) 13961 | -5/Factory | Reached level 24 13971 | -5/Factory | Destroyed 7 combat bots 14170 | -5/Factory | Manually triggered Chute Trap 14170 | -5/Factory | Sucked down chute 14170 | -5/Factory | Entered Waste 14210 | -5/Waste | 1 allies followed down the chute 14212 | -5/Waste | Spotted C-40 Crusher 14212 | -5/Waste | Destroyed C-40 Crusher 14224 | -5/Waste | Spotted C-40 Crusher 14225 | -5/Waste | Destroyed C-40 Crusher 14227 | -5/Waste | Spotted C-40 Crusher 14230 | -5/Waste | Destroyed C-40 Crusher 14234 | -5/Waste | Spotted C-40 Crusher 14235 | -5/Waste | Destroyed C-40 Crusher 14237 | -5/Waste | Spotted C-40 Crusher 14240 | -5/Waste | Destroyed C-40 Crusher 14246 | -5/Waste | Spotted C-40 Crusher 14247 | -5/Waste | Destroyed C-40 Crusher 14254 | -5/Waste | Discovered new exit (range 12) 14256 | -5/Waste | Identified exit to Factory 14281 | -5/Waste | Warlord forces began an assault 14305 | -5/Waste | Entered Factory 14305 | -5/Factory | Accompanied by 7 allies 14345 | -5/Factory | Discovered exit to Upper Caves (range 9) 14605 | -5/Factory | First assault squad dispatched 14618 | -5/Factory | Lost 3 allies 14869 | -5/Factory | Fabricated Diametric Drive? 14906 | -5/Factory | Fabricated Diametric Drive? 15306 | -5/Factory | Cargo convoy interrupted 15328 | -5/Factory | Destroyed 15 combat bots 15560 | -5/Factory | Destroyed 7 combat bots 15695 | -5/Factory | Unchained authorized (CL-0N3) 15725 | -5/Factory | Fabricated Diametric Drive? 15787 | -5/Factory | Reached level 25 15813 | -5/Factory | High security lockdown imminent 15878 | -5/Factory | Destroyed 14 combat bots 15893 | -5/Factory | High security lockdown engaged 15932 | -5/Factory | Destroyed 11 combat bots 15959 | -5/Factory | G-67 Veteran reconstituted as Armor Guard 15959 | -5/Factory | Spotted Armor Guard 15990 | -5/Factory | Destroyed Armor Guard 15990 | -5/Factory | Armor Guard reconstituted as CL-0N3 16019 | -5/Factory | Destroyed CL-0N3 16103 | -5/Factory | Destroyed 8 combat bots 16174 | -5/Factory | Core integrity fell below 50% 16238 | -5/Factory | Destroyed 25 combat bots 16408 | -5/Factory | Destroyed 21 combat bots 16441 | -5/Factory | Sterilization system engaged 16441 | -5/Factory | Non-combat units ordered to evacuate 16474 | -5/Factory | Destroyed 9 combat bots 16481 | -5/Factory | Reached level 26 16541 | -5/Factory | Combat units ordered to evacuate 16734 | -5/Factory | Spotted B-75 Beast 16740 | -5/Factory | Destroyed B-75 Beast 16741 | -5/Factory | Ambient heat levels rising (+10) 16780 | -5/Factory | Entered Upper Caves 16829 | -5/Upper Caves | Learned 8 Factory zone layouts 16830 | -5/Upper Caves | Found Alien Artifact 16830 | -5/Upper Caves | Identified Dimensional Node Initializer 16830 | -5/Upper Caves | Initialized slip node 16843 | -5/Upper Caves | Encountered a Warlord checkpoint 16911 | -5/Upper Caves | Learned Factory emergency access door positions 16955 | -5/Upper Caves | Discovered new exit (range 6) 16956 | -5/Upper Caves | Identified exit to Upper Caves 16963 | -5/Upper Caves | Destroyed 9 combat bots 17027 | -5/Upper Caves | Entered another Upper Caves area 17043 | -5/Upper Caves | Discovered exit to Factory (range 10) 17067 | -5/Upper Caves | Spotted B-75 Beast 17073 | -5/Upper Caves | Destroyed B-75 Beast 17128 | -5/Upper Caves | Learned Factory security intel 17148 | -5/Upper Caves | Attracted the attention of an 0b10 checkpoint 17154 | -5/Upper Caves | Learned Factory terminal intel 17158 | -5/Upper Caves | Discovered new exit (range 12) 17160 | -5/Upper Caves | Identified exit to Zhirov 17216 | -5/Upper Caves | Attracted the attention of an 0b10 outpost 17272 | -5/Upper Caves | Destroyed 9 combat bots 17290 | -5/Upper Caves | Entered Zhirov 17290 | -5/Zhirov | Discovered new exit (range 3) 17291 | -5/Zhirov | Identified exit to Proximity Caves 17294 | -5/Zhirov | Met Zhirov 17303 | -5/Zhirov | Zhirov requested help retrieving the SGEMP Prototype 17333 | -5/Zhirov | Found Alien Artifact 17333 | -5/Zhirov | Identified Integrated Reactor 17333 | -5/Zhirov | Installed Integrated Reactor, increased core energy generation (+10) 17866 | -5/Zhirov | Entered Proximity Caves 18108 | -4/Proximity Caves | Received a Behemoth hack from an annoying Tinkerer 18411 | -4/Proximity Caves | Attacked by a faux Warlord 18455 | -4/Proximity Caves | Learned 4 Research zone layouts 18467 | -4/Proximity Caves | Entered Factory 18468 | -4/Factory | Identified exit to Research 18471 | -4/Factory | Loaded intel: 28 terminal locations 18641 | -4/Factory | Unchained authorized (6S-H0T) 18678 | -4/Factory | Repaired Broken Enh. Force Rifle 18681 | -4/Factory | Exiles provided nearest exit location to -3/Research 18747 | -4/Factory | Core integrity fell below 50% 18852 | -4/Factory | Discovered new exit (range 16) 18854 | -4/Factory | Identified exit to Extension 18908 | -4/Factory | Reached level 27 18939 | -4/Factory | Destroyed 6S-H0T 18983 | -4/Factory | Upgraded with Utility slot (x1) 18987 | -4/Factory | Found Prototype Ballistic Gun 18987 | -4/Factory | Identified 6S-H0T's Six Shooter 19008 | -4/Factory | Fabricated Diametric Drive? 19093 | -4/Factory | Unchained authorized (QV-33N) 19167 | -4/Factory | Found Exp. Targeting Computer 19217 | -4/Factory | First assault squad dispatched 19246 | -4/Factory | Destroyed 7 combat bots 19336 | -4/Factory | Destroyed QV-33N 19340 | -4/Factory | Found Prototype Device 19340 | -4/Factory | Identified QV-33N's Drone Shield 19376 | -4/Factory | Destroyed 9 combat bots 19643 | -4/Factory | Spotted B-86 Titan 19729 | -4/Factory | Destroyed 11 combat bots 19779 | -4/Factory | Sucked down chute 19779 | -4/Factory | Entered Waste 19783 | -4/Waste | Spotted C-40 Crusher 19786 | -4/Waste | Destroyed C-40 Crusher 19794 | -4/Waste | EMP discharged 19803 | -4/Waste | Spotted C-40 Crusher 19806 | -4/Waste | Destroyed C-40 Crusher 19807 | -4/Waste | Spotted C-40 Crusher 19808 | -4/Waste | Spotted C-40 Crusher 19816 | -4/Waste | Spotted C-40 Crusher 19822 | -4/Waste | Destroyed C-40 Crusher 19822 | -4/Waste | Destroyed C-40 Crusher 19828 | -4/Waste | Destroyed C-40 Crusher 19831 | -4/Waste | Spotted C-40 Crusher 19833 | -4/Waste | Destroyed C-40 Crusher 19838 | -4/Waste | Discovered new exit (range 13) 19840 | -4/Waste | Identified exit to Factory 19840 | -4/Waste | Entered Factory 19854 | -4/Factory | Destroyed 9 combat bots 19999 | -4/Factory | Destroyed 7 combat bots 20040 | -4/Factory | Garrison activated, responded to threat 20079 | -4/Factory | Destroyed 9 combat bots 20090 | -4/Factory | First assault squad dispatched 20137 | -4/Factory | Reached level 28 20196 | -4/Factory | Discovered exit to Research (range 13) 20301 | -4/Factory | Discovered exit to Research (range 14) 20389 | -4/Factory | Discovered new exit (range 16) 20400 | -4/Factory | Identified exit to Upper Caves 20438 | -4/Factory | Discovered exit to Extension (range 5) 20446 | -4/Factory | Discovered exit to Research (range 5) 20608 | -4/Factory | Fabricated Exp. Reaction Control System? 20809 | -4/Factory | Entered Extension 20855 | -4/Extension | Spotted B-86 Titan 20857 | -4/Extension | Destroyed B-86 Titan 20864 | -4/Extension | Spotted B-86 Titan 20867 | -4/Extension | Destroyed B-86 Titan 20880 | -4/Extension | Discovered exit to Research (range 3) 20978 | -4/Extension | Discovered exit to Research (range 10) 20978 | -4/Extension | Discovered new exit (range 6) 21092 | -4/Extension | Rescued a captive Derelict 21192 | -4/Extension | Rescued A7 21245 | -4/Extension | Rescued a captive Derelict 21290 | -4/Extension | Identified exit to Cetus 21350 | -4/Extension | Disrupted transfer network 21495 | -4/Extension | Entered Cetus 21495 | -4/Cetus | Accompanied by 4 allies (A7) 21498 | -4/Cetus | Spotted Cetus Guard 21498 | -4/Cetus | Spotted Cetus Guard 21498 | -4/Cetus | Destroyed Cetus Guard 21500 | -4/Cetus | Acquired a Cetus Manufacturing Module code from A7 21503 | -4/Cetus | Spotted Cetus Guard 21503 | -4/Cetus | Destroyed Cetus Guard 21505 | -4/Cetus | Spotted Cetus Guard 21509 | -4/Cetus | Destroyed Cetus Guard 21511 | -4/Cetus | Allies destroyed Cetus Guard 21531 | -4/Cetus | Discovered exit to Research (range 16) 21545 | -4/Cetus | Discovered new exit (range 15) 21548 | -4/Cetus | Identified exit to Archives 21557 | -4/Cetus | Spotted Cetus Guard 21557 | -4/Cetus | Spotted Cetus Guard 21558 | -4/Cetus | Destroyed Cetus Guard 21558 | -4/Cetus | Spotted Cetus Guard 21560 | -4/Cetus | Spotted Cetus Guard 21560 | -4/Cetus | Destroyed Cetus Guard 21563 | -4/Cetus | Destroyed Cetus Guard 21566 | -4/Cetus | Destroyed Cetus Guard 21571 | -4/Cetus | Discovered exit to Research (range 16) 21573 | -4/Cetus | Met Revision 17 21590 | -4/Cetus | Started Cetus Manufacturing Module 21615 | -4/Cetus | Manufactured an Enhanced Grunt 21640 | -4/Cetus | Manufactured an Enhanced Grunt 21665 | -4/Cetus | Manufactured an Enhanced Grunt 21690 | -4/Cetus | Manufactured an Enhanced Grunt 21715 | -4/Cetus | Manufactured an Enhanced Grunt 22245 | -4/Cetus | Security sweep announced 22332 | -4/Cetus | Entered Archives 22332 | -4/Archives | Accompanied by 9 allies (A7) 22366 | -4/Archives | Unable to access archive contents 22369 | -4/Archives | Discovered exit to Research (range 16) 22376 | -4/Archives | Discovered new exit (range 13) 22385 | -4/Archives | Identified exit to Hub_04(d) 22389 | -4/Archives | Discovered exit to Hub_04(d) (range 15) 22433 | -4/Archives | Entered Hub_04(d) 22433 | -4/Hub_04(d) | Accompanied by 7 allies 22454 | -4/Hub_04(d) | Discovered exit to Research (range 7) 22462 | -4/Hub_04(d) | Discovered exit to Research (range 15) 22484 | -4/Hub_04(d) | Garrison activated, responded to threat 22524 | -4/Hub_04(d) | Discovered exit to Research (range 5) 22532 | -4/Hub_04(d) | Garrison activated, responded to threat 22559 | -4/Hub_04(d) | Reached level 29 22626 | -4/Hub_04(d) | Discovered exit to Research (range 9) 22664 | -4/Hub_04(d) | Destroyed 9 combat bots 22683 | -4/Hub_04(d) | First assault squad dispatched 22795 | -4/Hub_04(d) | Spotted B-86 Titan 22798 | -4/Hub_04(d) | Destroyed 8 combat bots 22798 | -4/Hub_04(d) | Destroyed B-86 Titan 22907 | -4/Hub_04(d) | Network Hub disabled 22918 | -4/Hub_04(d) | Network Hub disabled 22922 | -4/Hub_04(d) | Spotted Lightning 22953 | -4/Hub_04(d) | Spotted Lightning 22954 | -4/Hub_04(d) | Spotted Lightning 22961 | -4/Hub_04(d) | Spotted Lightning 22968 | -4/Hub_04(d) | Spotted Lightning 23009 | -4/Hub_04(d) | Destroyed 10 combat bots 23044 | -4/Hub_04(d) | Network Hub disabled 23044 | -4/Hub_04(d) | Network Hub disabled 23405 | -4/Hub_04(d) | Disrupted transfer network 23408 | -4/Hub_04(d) | Spotted Lightning 23409 | -4/Hub_04(d) | Spotted Lightning 23415 | -4/Hub_04(d) | Entered Research 23424 | -3/Research | Upgraded with Propulsion slot (x1) 23470 | -3/Research | Discovered new exit (range 9) 23542 | -3/Research | Discovered new exit (range 4) 23543 | -3/Research | Identified exit to Testing 23547 | -3/Research | Spotted B-86 Titan 23570 | -3/Research | Discovered exit to Testing (range 9) 23610 | -3/Research | Discovered new exit (range 3) 23615 | -3/Research | Revision forces began assault on 0b10 23616 | -3/Research | Identified exit to Research 23645 | -3/Research | Discovered exit to Research (range 3) 23652 | -3/Research | High security lockdown imminent 23673 | -3/Research | Lost 3 allies 23687 | -3/Research | Reached level 30 23732 | -3/Research | High security lockdown engaged 23735 | -3/Research | Destroyed 9 combat bots 23818 | -3/Research | Spotted B-86 Titan 23825 | -3/Research | Destroyed B-86 Titan 23846 | -3/Research | Destroyed 12 combat bots 23914 | -3/Research | Destroyed 8 combat bots 24115 | -3/Research | Research terminal network offline 24115 | -3/Research | Destroyed 13 combat bots 24221 | -3/Research | Spotted Executioner 24240 | -3/Research | Spotted Striker 24241 | -3/Research | Spotted Striker 24260 | -3/Research | Destroyed 7 combat bots 24268 | -3/Research | Destroyed Striker 24271 | -3/Research | Destroyed Striker 24289 | -3/Research | Destroyed Executioner 24289 | -3/Research | Reached level 31 24322 | -3/Research | Discovered new exit (range 11) 24358 | -3/Research | Spotted Executioner 24359 | -3/Research | Destroyed Executioner 24388 | -3/Research | Destroyed 20 combat bots 24397 | -3/Research | Identified exit to Armory 24485 | -3/Research | Spotted Striker 24495 | -3/Research | Destroyed Striker 24509 | -3/Research | Spotted Executioner 24509 | -3/Research | Spotted Executioner 24509 | -3/Research | Spotted Striker 24518 | -3/Research | Destroyed 9 combat bots 24527 | -3/Research | Destroyed B-86 Titan 24581 | -3/Research | Destroyed Executioner 24590 | -3/Research | Found Prototype Device 24591 | -3/Research | Crushed by falling debris 24597 | -3/Research | Identified Adv. Kinecellerator 24622 | -3/Research | Destroyed Executioner 24702 | -3/Research | Destroyed 18 combat bots 24718 | -3/Research | Spotted Striker 24718 | -3/Research | Spotted Striker 24720 | -3/Research | Spotted Executioner 24720 | -3/Research | Spotted Striker 24725 | -3/Research | Spotted Executioner 24738 | -3/Research | Destroyed Striker 24755 | -3/Research | Spotted Striker 24765 | -3/Research | Sterilization system engaged 24765 | -3/Research | Non-combat units ordered to evacuate 24778 | -3/Research | Spotted Executioner 24778 | -3/Research | Spotted Striker 24781 | -3/Research | Core integrity fell below 50% 24789 | -3/Research | Destroyed Striker 24793 | -3/Research | Destroyed Striker 24796 | -3/Research | Destroyed Executioner 24831 | -3/Research | Destroyed Striker 24831 | -3/Research | Destroyed Executioner 24835 | -3/Research | Destroyed Executioner 24844 | -3/Research | Destroyed Striker 24860 | -3/Research | Spotted Striker 24861 | -3/Research | Destroyed Striker 24864 | -3/Research | Found Prototype Processor 24864 | -3/Research | Identified Exp. Core Analyzer 24865 | -3/Research | Combat units ordered to evacuate 24891 | -3/Research | Spotted Striker 24897 | -3/Research | Destroyed Striker 24909 | -3/Research | Spotted Striker 24909 | -3/Research | Destroyed Striker 24935 | -3/Research | Reached level 32 24945 | -3/Research | Spotted Executioner 24961 | -3/Research | Destroyed Executioner 24962 | -3/Research | Spotted Executioner 24979 | -3/Research | Destroyed Executioner 24987 | -3/Research | Spotted Executioner 24990 | -3/Research | Destroyed Executioner 25029 | -3/Research | Spotted Executioner 25037 | -3/Research | Destroyed Executioner 25048 | -3/Research | Spotted Striker 25055 | -3/Research | Destroyed Striker 25065 | -3/Research | Ambient heat levels rising (+10) 25076 | -3/Research | Destroyed 98 combat bots 25124 | -3/Research | Entered Armory 25292 | -3/Armory | Found Prototype Processor 25294 | -3/Armory | Identified Exp. Target Analyzer 25374 | -3/Armory | First assault squad dispatched 25390 | -3/Armory | High security lockdown imminent 25470 | -3/Armory | High security lockdown engaged 25474 | -3/Armory | Destroyed 27 combat bots 25482 | -3/Armory | Spotted Armor Guard 25482 | -3/Armory | Spotted Armor Guard 25491 | -3/Armory | Destroyed Armor Guard 25499 | -3/Armory | Destroyed Armor Guard 25531 | -3/Armory | Spotted Armor Guard 25531 | -3/Armory | Spotted Armor Guard 25534 | -3/Armory | Destroyed Armor Guard 25540 | -3/Armory | Destroyed Armor Guard 25572 | -3/Armory | Destroyed 8 combat bots 25639 | -3/Armory | Destroyed 13 combat bots 25708 | -3/Armory | Destroyed 8 combat bots 25717 | -3/Armory | Spotted Investigator 25717 | -3/Armory | Scanned by Researcher 25719 | -3/Armory | Destroyed Investigator 25758 | -3/Armory | Spotted B-86 Titan 25760 | -3/Armory | Destroyed B-86 Titan 25781 | -3/Armory | Destroyed 14 combat bots 25800 | -3/Armory | Discovered exit to Research (range 5) 25864 | -3/Armory | Spotted Executioner 25866 | -3/Armory | Spotted Executioner 25899 | -3/Armory | Destroyed Executioner 25899 | -3/Armory | Destroyed Executioner 25938 | -3/Armory | Destroyed 33 combat bots 25938 | -3/Armory | Spotted Striker 25941 | -3/Armory | Destroyed Striker 25981 | -3/Armory | Spotted Investigator 26027 | -3/Armory | Reached level 33 26031 | -3/Armory | Spotted Striker 26032 | -3/Armory | Destroyed Investigator 26048 | -3/Armory | Destroyed Striker 26077 | -3/Armory | Discovered new exit (range 4) 26080 | -3/Armory | Identified exit to Lab 26083 | -3/Armory | Sterilization system engaged 26083 | -3/Armory | Non-combat units ordered to evacuate 26098 | -3/Armory | Destroyed 22 combat bots 26169 | -3/Armory | Destroyed 21 combat bots 26183 | -3/Armory | Combat units ordered to evacuate 26250 | -3/Armory | Discovered exit to Research (range 9) 26363 | -3/Armory | Entered Lab 26363 | -3/Lab | Discovered exit to Research (range 10) 26365 | -3/Lab | Unable to decrypt terminal 26367 | -3/Lab | Detected for breach 26370 | -3/Lab | Unable to decrypt terminal 26371 | -3/Lab | Gained access to the hidden lab's interior 26389 | -3/Lab | Confronted by A5 26404 | -3/Lab | Destroyed A5 26415 | -3/Lab | Found Alien Artifact 26415 | -3/Lab | Identified Core Reset Matrix 26415 | -3/Lab | Used Core Reset Matrix 26419 | -3/Lab | Sensed 3 artifacts in vicinity 26419 | -3/Lab | Discovered exit to Research (range 7) 26419 | -3/Lab | Unable to decrypt terminal 26422 | -3/Lab | Found Core Expander 26422 | -3/Lab | Installed Core Expander, added new Propulsion slot 26426 | -3/Lab | Found Integrated Dissipator 26426 | -3/Lab | Installed Integrated Dissipator, increased core heat dissipation (+20) 26434 | -3/Lab | Unable to decrypt terminal 26437 | -3/Lab | Found Prototype Special Weapon 26437 | -3/Lab | Identified Gui. Remote Datajack 26442 | -3/Lab | Unable to decrypt terminal 26452 | -3/Lab | Found Prototype Energy Cannon 26452 | -3/Lab | Identified Potential Cannon 26454 | -3/Lab | Found Prototype Energy Gun 26454 | -3/Lab | Identified Tachyon Dispersion Ray 26470 | -3/Lab | Found Prototype Protection 26470 | -3/Lab | Identified Exp. Powered Armor 26472 | -3/Lab | Found Prototype Hackware 26472 | -3/Lab | Identified Quantum Router 26476 | -3/Lab | Unable to decrypt terminal 26510 | -3/Lab | Unable to decrypt terminal 26510 | -3/Lab | Unable to decrypt terminal 26512 | -3/Lab | Found LC Capacitor 26535 | -3/Lab | Unable to decrypt terminal 26546 | -3/Lab | Found Prototype Protection 26546 | -3/Lab | Identified Med. Regenerative Plating 26552 | -3/Lab | Unable to decrypt terminal 26571 | -3/Lab | Unable to decrypt terminal 26643 | -3/Lab | Entered Research 26704 | -2/Research | Discovered new exit (range 5) 26722 | -2/Research | Identified exit to Quarantine 26759 | -2/Research | Destroyed 8 combat bots 26800 | -2/Research | Unchained authorized (GL-D0S) 26829 | -2/Research | Spotted B-90 Cyclops 26834 | -2/Research | Destroyed B-90 Cyclops 26893 | -2/Research | First assault squad dispatched 26904 | -2/Research | Garrison activated, responded to threat 26910 | -2/Research | Identified exit to Access 26960 | -2/Research | Destroyed 7 combat bots 27001 | -2/Research | Spotted B-90 Cyclops 27005 | -2/Research | Destroyed B-90 Cyclops 27007 | -2/Research | Spotted B-90 Cyclops 27068 | -2/Research | Core integrity fell below 50% 27113 | -2/Research | Reached level 34 27127 | -2/Research | Emitted hypermatrix ping 27132 | -2/Research | Assembled emerged from beneath the floor 27136 | -2/Research | Garrison activated, responded to threat 27152 | -2/Research | Destroyed 7 combat bots 27163 | -2/Research | Unchained authorized (GL-D0S) 27191 | -2/Research | Lost 6 allies 27237 | -2/Research | Intercept squad dispatched 27239 | -2/Research | Assembled emerged from beneath the floor 27249 | -2/Research | Assembled emerged from beneath the floor 27265 | -2/Research | Spotted Tracker 27266 | -2/Research | Spotted Tracker 27268 | -2/Research | Destroyed Tracker 27274 | -2/Research | Destroyed Tracker 27277 | -2/Research | Core integrity fell below 20% 27306 | -2/Research | Lost 6 allies 27313 | -2/Research | Spotted Combat Programmer 27314 | -2/Research | Spotted Combat Programmer 27316 | -2/Research | Destroyed by Combat Programmer with EMDS Last Messages --------------- 27308_ Destroyed Unknown Ballistic Gun. 27311_ Y-72 Warden suffers critical hit (Destroy). 27311_ Destroyed Unknown Treads. 27311_ Unknown Device melted. 27311_ Unknown Reactor melted. 27311_ Unknown Energy Gun melted. 27311_ Unknown Device melted. 27311_ Y-72 Warden destroyed. 27311_ Terminal disabled. 27314_ Penetrated by EMDS Slug. 27314_ Adv. Corruption Screen intercepted 2% system corruption. 27315_ Penetrated by EMDS Slug. 27315_ Adv. Corruption Screen intercepted 1% system corruption. 27315_ ALERT: Suspicious intruders detected, dispatching Specialist reinforcements to area. 27316_ Penetrated by EMDS Slug. 27316_ Adv. Corruption Screen intercepted 1% system corruption. Map ----- +----------------------------------------------------+ | ???????????????????????? ? + # "" # " | | ??????????????????????? # # # " | | ??????????????????????? + # # | | ?????????????????????? % # # | | ???????????????????????"" ["] #"###"####### | | ?????????????????????????S"" " % ""########### | | ?????????????????????????""" # ! % # ???? | | ???????????????????????????????## [ # #### | | ??????????????????????????????? # % ###### | | ??????????????????????????????? # # """ | | ??????????????????????????????? ## ! ""R | | ??????????????????????????? ## n !% "= " | | ???????????????????????????####+## !! % | | ???????????????????????????## * %/ | | ??????????????????????????? # |[%= ! " | | ??????????????????????????? # %= % | | ??????????????????????????? # H # | | ??????????????????????????? + ##########% ####+# | | ????????????????????????? # ##########[ #### | | ?????????????????????????#### ####????## | | ??????????????????????##### h ##????## "###### | | ??????????????????????##### ##????## "## | | ??????????????????????## ]##??## ? # ! | | ??????????????????????## ## ##??## ? # | | ??????????????????????##pT# ##??## ? T # | | ??????????????????????##p@# [ ##??##[ "" # | | ??????????????????????##A##########??## !# | | ??????????????????????## ##########??## ?? # | | ??????????????????????##Y##??????????### ?## | | ??????????????????????#%*%#??????????? # ## | | ??????????????????????? ???????????? # ###+## | | ??????????????????????# #??????????? + | | ??????????????????????## ##??????????? # | | ??????????????????????## ##??????????? # | | ??????????????????????## ##??????????? # | | ?????????????????????? ??????????? ########+## | | ???????????????????????? ????????????? #### | | ???????????????????????? ????????????????## | | ???????????????????????? ????????????????## | | ???????????????????????? ????????????????## * | | ???????????????????????? ???????????????? + | | ???????????????????????? ????????????????## ** | | ?????????????????????????????????????????## ** | | ?????????????????????????????????????????## ** | | ????????????????????????????????????????########## | | ????????????????????????????????????????########## | | ????????????????????????????????????????## | | ????????????????????????????????????????## | | ????????????????????????????????## ?????## """ " | | ????????????????????????????????## ????## """ " | +----------------------------------------------------+ Best States ------------- Heat Dissipation 217 Energy Generation 58 Energy Capacity 420 Matter Stores 300 Matter Capacity 300 Sight Range 16 Terrain Scan Density 10 Jamming Range 14 Base Temperature (-) 200 Corruption Block 20 Resistance: KI 15 Resistance: TH 15 Weapon Cycling 30 Evasion (%) 66 Targeting Accuracy 12 Target Analysis 10 Core Analysis 8 Armor Integrity Analysis 50 Matter Filtering 50 Energy Filtering 50 Particle Charging 30 Kinecelleration 40 Offensive Hacking 56 Defensive Hacking 35 Authchip Count 1 Item Schematics ----------------- None Robot Schematics ------------------ None Fabricated ------------ Adv. Hacking Suite | x1 | -6/Factory Adv. Hacking Suite | x1 | -6/Factory Enh. Force Rifle | x1 | -6/Factory Enh. Force Rifle | x1 | -6/Factory Enh. Force Rifle | x1 | -6/Factory Enh. Force Rifle | x1 | -6/Factory Enh. Force Rifle | x1 | -5/Factory Cld. Plasma Cannon | x1 | -5/Factory Stasis Canceller | x2 | -5/Factory Diametric Drive | x1 | -5/Factory Diametric Drive | x1 | -5/Factory Diametric Drive | x1 | -5/Factory Diametric Drive | x1 | -4/Factory Exp. Reaction Control System | x1 | -4/Factory Repaired ---------- Enh. Force Rifle | 99% | -4/Factory | Broken Studied --------- None Alien Tech Used ----------------- Dimensional Node Initializer Integrated Reactor Core Reset Matrix Core Expander Integrated Dissipator LC Capacitor Achievements -------------- 404 Anyone Home? DIY Cooler Max Potential Monster Ultimate Loadout Challenges ------------ None RPGLIKE | -11 -10 -10 -10 -9 -8 -7 -7 -7 -7 -6 -6 -6 -6 -6 -5 -5 -5 -5 -5 -5 -5 -4 -4 -4 -4 -4 -4 -4 -4 -3 -3 -3 -2 --------- Run | Yrd Mat Min Exi Min Mat Fac Low Low Dat Pro Fac Low Low Zio Pro Fac Was Fac Upp Upp Zhi Pro Fac Was Fac Ext Cet Arc Hub Res Arm Lab Res Levels Raised 33 | . 3 1 . 1 3 4 1 . 1 2 4 . . . 1 2 . 2 . . . . 1 . 1 . . . 1 3 1 . 1 XP Earned 52836 | 3000 4675 1600 243 1350 4840 6060 1420 693 421 3543 5329 327 407 105 883 2855 32 2844 106 194 50 239 1628 32 856 383 290 147 1100 4160 1374 342 1308 XP Spent 52450 | 2970 4500 1500 . . 5980 4550 . 2900 . 4300 4710 . 1400 . . 4650 . . . . . . 4400 . . . . . 1250 6325 . 1500 1515 Upgrades 81 | 10 7 2 . . 10 10 . 5 . 2 10 . 1 . . 3 . . . . . . 4 . . . . . 1 10 . 1 5 Power Slot 1 | . . . . . 1 . . . . . . . . . . . . . . . . . . . . . . . . . . . . Propulsion Slot 5 | 1 1 . . . 1 . . . . . . . 1 . . . . . . . . . . . . . . . . 1 . . . Utility Slot 10 | 1 . . . . 2 1 . 1 . 2 1 . . . . 1 . . . . . . 1 . . . . . . . . . . Weapon Slot 4 | 2 1 . . . 1 . . . . . . . . . . . . . . . . . . . . . . . . . . . . Core Integrity 6 | . . . . . . . . . . . 4 . . . . . . . . . . . . . . . . . . . . . 2 Heat Dissipation 20 | 4 . . . . 2 5 . 4 . . 5 . . . . . . . . . . . . . . . . . . . . . . Energy Generation 3 | . . . . . . 1 . . . . . . . . . . . . . . . . . . . . . . . 2 . . . Energy Storage 4 | . . . . . . . . . . . . . . . . . . . . . . . . . . . . . . 3 . . 1 Mass Support 3 | 1 1 . . . . 1 . . . . . . . . . . . . . . . . . . . . . . . . . . . Inventory Capacity 6 | 1 1 . . . . . . . . . . . . . . 2 . . . . . . . . . . . . 1 . . 1 . Ranged Accuracy 6 | . 3 2 . . . . . . . . . . . . . . . . . . . . 1 . . . . . . . . . . Hack Attack % 2 | . . . . . 2 . . . . . . . . . . . . . . . . . . . . . . . . . . . . Hack Defense % 1 | . . . . . 1 . . . . . . . . . . . . . . . . . . . . . . . . . . . . KI Resistance % 3 | . . . . . . . . . . . . . . . . . . . . . . . 1 . . . . . . 1 . . 1 TH Resistance % 3 | . . . . . . . . . . . . . . . . . . . . . . . 1 . . . . . . 1 . . 1 TH Damage % 4 | . . . . . . 2 . . . . . . . . . . . . . . . . . . . . . . . 2 . . . Protomatter Created 21971 | . 300 14 . 40 277 276 82 235 . 274 1170 180 325 207 227 671 172 3120 330 470 . 200 492 86 642 620 350 81 1266 5360 3692 . 812 Integrity Restored 28258 | . 584 42 . 120 693 777 190 657 . 913 2654 288 419 382 213 961 . 5438 59 334 . 62 1759 258 945 301 53 . 2040 4351 2797 187 781 Core 22415 | . 526 42 . 120 693 643 124 494 . 749 2233 161 314 305 157 733 . 4324 51 274 . 48 1334 258 537 240 44 . 1664 3440 2133 58 716 Parts 5843 | . 58 . . . . 134 66 163 . 164 421 127 105 77 56 228 . 1114 8 60 . 14 425 . 408 61 9 . 376 911 664 129 65 Protomatter Decayed 12285 | . 71 . . 44 39 . 17 26 . 22 209 . 172 64 87 214 . 724 249 229 . 300 56 . 186 501 332 81 518 6484 1347 41 272 Game ------ Seed MetamassHellfireMatter Manual? 0 Play Time 11:02:13 Cumulative 162.3 hours Start 2025.11.08 @ 20:41:18 End 2025.11.12 @ 19:40:15 Sessions 9 Manual Loads 0 Difficulty Rogue Special Mode Winter2019/RPGLIKE Game No. 54 Rogue 54 Adventurer 0 Explorer 0 Win Type - Total 6 Types 2/0/1/3/0/0/0/0/0/0 Lore% 55 Gallery% 53 Achievement% 52 Wizard Run 0 Options --------- Layout 2 ASCII 0 Keyboard 0 Movement Mouse Keybinds 1 Fullscreen 2 Font 20/X11 Map View 64x51 Zoom Use 0% Tactical HUD 1 Map Filters NONE Filters NONE Steam 1 RUN: 1ffc1539-3a69-4988-8ba6-51a36ebb951c